Workbook

Sheet Input Sheet
A1: Reservoir Properties
A2: Site name: | I2: Instructions | P2: Distribution Types & Required Inputs | V2: Required Variables for Calculation Methods
I3: Enter all known information to the best of your ability. Use the given information (right) to ensure that all required cells are populated for the selected distribution types and desired calculation methods. If bedrock composition is not known, input Quartzite. Default values are generalized estimations. Values tailored to the specifications of a system will more accurately represent a project. Refer to the RSAT Protocol document for more information. These assessment tools are written for industry professionals and are not substitutes for detailed feasibility and engineering studies. The estimates provided by the RSAT are simplified outcomes borrowed from published methods. They are neither certified nor guaranteed to be accurate. The reported results are not comparable to detailed resource analyses performed by engineering professionals, and not a substitute for detailed numerical reservoir modeling.
B4: Minimum | C4: Most Likely/Mean | D4: Maximum | E4: Standard Deviation | F4: Distribution type | G4: Unit | V4: Volumetric Method | Y4: Power Density Method
A5: Area | F5: - | G5: km^2 | V5: Temperature | Y5: Temperature
A6: Volume | F6: - | G6: km^3 | V6: Area & Thickness | Y6: Area
A7: Thickness | F7: - | G7: km | V7: OR | Y7: Tectonic Setting
A8: Temperature | F8: - | G8: C | V8: Volume
A9: Total Mass Flow Rate | F9: - | G9: L/s
V10: Flow Rate Method
A11: Primary Bedrock Composition | B11: Quartzite | V11: Temperature
A12: Tectonic Setting | B12: Rift | V12: Mass Flow Rate
A14: Number of Monte Carlo iterations | B14: 1000
A17: Utilization Properties
B19: Default (years) | C19: User input (years)
A20: Project lifetime | B20: 30
A22: Power Generation
C24: Conversion Efficiency
A25: Plant type | C25: Default | D25: User Input
A26: Binary | B26: Min | C26: -
B27: Mean/Most likely | C27: =IF(A26="Steam (dry/flash)", 0.11, IF(A26="Binary", 0.08, IF(C8 >= 180,0.11,IF(C8 < 180,0.08,"Not enough information")))) -> 0.08
B28: Max | C28: -
B29: Standard Deviation | C29: -
B30: Distribution type | C30: Constant
B32: Default | C32: User Input
A33: Abandonment Temperature (C) | B33: =IF(A26="Steam (dry/flash)", 151.831, IF(AND(A26="Binary",C8>=125), 105.36, IF(AND(A26 = "Binary", C8 < 125),70, IF(AND(A26="-",C8 >= 180),151.831, IF(AND(A26="-",C8 < 180,C8 >= 125),105.36,IF(AND(A26="-",C8<125),70,"Not enough information")))))) -> 70
A35: Direct Use
C37: Heat Exchange Efficiency Factor
A38: Use Type | C38: Default | D38: User Input
A39: Greenhouse Heating | B39: Min | C39: =IF(A39=Tables!A205, 0.25, 0.6) -> 0.6
B40: Mean/Most likely | C40: =IF(A39=Tables!A205,0.4, 0.7) -> 0.7
B41: Max | C41: =IF(A39=Tables!A205, 0.5, 0.8) -> 0.8
B42: Standard Deviation
B43: Distribution type | C43: Uniform
B45: Default | C45: User Input
A46: Reference/ambient air temperature (C) | B46: 15
A48: Demand Properties
A50: Direct Use
C52: Utilization/Load Factor
A53: Use Type | C53: Default | D53: User Input
A54: =A39 -> Greenhouse Heating | B54: Min | C54: =IF(A39=Tables!A201,Tables!B201,IF(A39=Tables!A202,Tables!B202,IF(A39=Tables!A203,Tables!B203,IF(A39=Tables!A204,Tables!B204,IF(A39=Tables!A205,Tables!B205,IF(A39=Tables!A206,Tables!B206,"-")))))) -> 0.4
B55: Mean/Most likely | C55: =IF(A39=Tables!A201,Tables!C201,IF(A39=Tables!A202,Tables!C202,IF(A39=Tables!A203,Tables!C203, IF(A39=Tables!A204,Tables!C204,IF(A39=Tables!A205,Tables!C205,IF(A39=Tables!A206,Tables!C206,"-")))))) -> 0.48
B56: Max | C56: =IF(A39=Tables!A201,Tables!D201,IF(A39=Tables!A202,Tables!D202,IF(A39=Tables!A203,Tables!D203,IF(A39=Tables!A204,Tables!D204,IF(A39=Tables!A205,Tables!D205,IF(A39=Tables!A206,Tables!D206,"-")))))) -> 0.5
B57: Standard Deviation | C57: -
B58: Distribution type | C58: Triangular

Sheet Power Results
A1: Volumetric Results | J1: Power Density Results | S1: Flow Rate Results
A3: Mean | B3: =AVERAGE('Monte Carlo Calculations'!V15:V10015) ->  | J3: Mean | K3: =AVERAGE('Monte Carlo Calculations'!W15:W10015) ->  | S3: Mean | T3: =AVERAGE('Monte Carlo Calculations'!X15:X10015) -> 
A4: P90 | B4: =_xlfn.PERCENTILE.INC([0]!vol_power_results,0.1) ->  | J4: P90 | K4: =_xlfn.PERCENTILE.INC([0]!pow_dens_results,0.1) ->  | S4: P90 | T4: =_xlfn.PERCENTILE.INC([0]!flow_power_results,0.1) -> 
A5: P50 | B5: =_xlfn.PERCENTILE.INC([0]!vol_power_results,0.5) ->  | J5: P50 | K5: =_xlfn.PERCENTILE.INC([0]!pow_dens_results,0.5) ->  | S5: P50 | T5: =_xlfn.PERCENTILE.INC([0]!flow_power_results,0.5) -> 
A6: P10 | B6: =_xlfn.PERCENTILE.INC([0]!vol_power_results,0.9) ->  | J6: P10 | K6: =_xlfn.PERCENTILE.INC([0]!pow_dens_results,0.9) ->  | S6: P10 | T6: =_xlfn.PERCENTILE.INC([0]!flow_power_results,0.9) -> 
A27: Comparison of Resource Size Estimates for Power Generation

Sheet Direct Use Results
A1: Volumetric Results | J1: Flow Rate Results
A3: Mean | B3: =AVERAGE([0]!vol_DU_results) ->  | J3: Mean | K3: =AVERAGE([0]!flow_DU_results) -> 
A4: P90 | B4: =_xlfn.PERCENTILE.INC([0]!vol_DU_results,0.1) ->  | J4: P90 | K4: =_xlfn.PERCENTILE.INC([0]!flow_DU_results,0.1) -> 
A5: P50 | B5: =_xlfn.PERCENTILE.INC([0]!vol_DU_results,0.5) ->  | J5: P50 | K5: =_xlfn.PERCENTILE.INC([0]!flow_DU_results,0.5) -> 
A6: P10 | B6: =_xlfn.PERCENTILE.INC([0]!vol_DU_results,0.9) ->  | J6: P10 | K6: =_xlfn.PERCENTILE.INC([0]!flow_DU_results,0.9) -> 
A27: Comparison of Resource Size Estimates for Direct Use

Sheet Cascaded Use Potential
A1: Resource Size Potential for Cascaded Use Project
B3: Volumetric Method | G3: Flow Rate Method
B4: Power (MWe) | C4: Direct Use (MWt) | D4: Difference (Cascaded Use) (MWt) | G4: Power (MWe) | H4: Direct Use (MWt) | I4: Difference (Cascaded Use) (MWt)
A5: P90 | B5: =_xlfn.PERCENTILE.INC('Monte Carlo Calculations'!V12:V10012,0.1) ->  | C5: =_xlfn.PERCENTILE.INC([0]!vol_DU_results,0.1) ->  | D5: =C5-B5 ->  | F5: P90 | G5: =_xlfn.PERCENTILE.INC('Monte Carlo Calculations'!X12:X10012,0.1) ->  | H5: =_xlfn.PERCENTILE.INC([0]!flow_DU_results,0.1) ->  | I5: =H5-G5 -> 
A6: P50 | B6: =_xlfn.PERCENTILE.INC('Monte Carlo Calculations'!V13:V10013,0.5) ->  | C6: =_xlfn.PERCENTILE.INC([0]!vol_DU_results,0.5) ->  | D6: =C6-B6 ->  | F6: P50 | G6: =_xlfn.PERCENTILE.INC('Monte Carlo Calculations'!X13:X10013,0.5) ->  | H6: =_xlfn.PERCENTILE.INC([0]!flow_DU_results,0.5) ->  | I6: =H6-G6 -> 
A7: P10 | B7: =_xlfn.PERCENTILE.INC('Monte Carlo Calculations'!V14:V10014,0.9) ->  | C7: =_xlfn.PERCENTILE.INC([0]!vol_DU_results,0.9) ->  | D7: =C7-B7 ->  | F7: P10 | G7: =_xlfn.PERCENTILE.INC('Monte Carlo Calculations'!X14:X10014,0.9) ->  | H7: =_xlfn.PERCENTILE.INC([0]!flow_DU_results,0.9) ->  | I7: =H7-G7 -> 

Sheet Equation inputs+defaults
A1: Input Sheet
A2: Reservoir_Properties | B2: Units | C2: Min | D2: Most_Likely | E2: Max | F2: Standar_Desviation | G2: Distribution_Type
A3: ReservoirArea | B3: km2 | C3: ='Input Sheet'!B5 -> 0 | D3: ='Input Sheet'!C5 -> 0 | E3: ='Input Sheet'!D5 -> 0 | F3: ='Input Sheet'!E5 -> 0 | G3: =IF('Input Sheet'!F5="Triangular","T",IF('Input Sheet'!F5="Constant","C",IF('Input Sheet'!F5="Uniform","U",IF('Input Sheet'!F5="Normal","N",IF('Input Sheet'!F5="Lognormal","L","No distribution selected."))))) -> No distribution selected.
A4: Thickness | B4: m | C4: ='Input Sheet'!B7 -> 0 | D4: ='Input Sheet'!C7 -> 0 | E4: ='Input Sheet'!D7 -> 0 | F4: ='Input Sheet'!E7 -> 0 | G4: =IF('Input Sheet'!F7="Triangular","T",IF('Input Sheet'!F7="Constant","C",IF('Input Sheet'!F7="Uniform","U",IF('Input Sheet'!F7="Normal","N",IF('Input Sheet'!F7="Lognormal","L","No distribution selected."))))) -> No distribution selected.
A5: Volume | B5: km3 | C5: ='Input Sheet'!B6 -> 0 | D5: ='Input Sheet'!C6 -> 0 | E5: ='Input Sheet'!D6 -> 0 | F5: ='Input Sheet'!E6 -> 0 | G5: =IF('Input Sheet'!F6="Triangular","T",IF('Input Sheet'!F6="Constant","C",IF('Input Sheet'!F6="Uniform","U",IF('Input Sheet'!F6="Normal","N",IF('Input Sheet'!F6="Lognormal","L","No distribution selected."))))) -> No distribution selected.
A6: ReservoirTemperature | B6: oC | C6: ='Input Sheet'!B8 -> 0 | D6: ='Input Sheet'!C8 -> 0 | E6: ='Input Sheet'!D8 -> 0 | F6: ='Input Sheet'!E8 -> 0 | G6: =IF('Input Sheet'!F8="Triangular","T",IF('Input Sheet'!F8="Constant","C",IF('Input Sheet'!F8="Uniform","U",IF('Input Sheet'!F8="Normal","N",IF('Input Sheet'!F8="Lognormal","L","No distribution selected."))))) -> No distribution selected.
A7: AbandonTemperature | B7: oC | C7: 0 | D7: =IF(ISBLANK('Input Sheet'!C33),'Input Sheet'!B33,'Input Sheet'!C33) -> 70 | E7: 0 | F7: 0 | G7: =IF('Input Sheet'!F30="-", "C", IF('Input Sheet'!F30="Triangular","T",IF('Input Sheet'!F30="Constant","C",IF('Input Sheet'!F30="Uniform","U",IF('Input Sheet'!F30="Normal","N",IF('Input Sheet'!F30="Lognormal","L","C")))))) -> C
A8: Porosity | B8: % | C8: 0 | D8: =IF('Input Sheet'!B11=Tables!A122,0.3,0.06) -> 0.06 | E8: 0 | F8: 0.02 | G8: N
A9: RockSpecificHeat | B9: kJ/kg-oC | C9: =VLOOKUP('Input Sheet'!B$11,Tables!A$46:D$60,3,FALSE) -> 0.97 | D9: =VLOOKUP('Input Sheet'!B11,Tables!A46:D60,2,FALSE) -> 1.07 | E9: =VLOOKUP('Input Sheet'!B11,Tables!A46:D60,4,FALSE) -> 1.17 | G9: T
A10: WaterSpecificHeat | B10: kJ/kg-oC | C10: 0 | D10: =VLOOKUP('Input Sheet'!C8,Tables!A64:B104,2,TRUE) ->  | E10: 0 | G10: C
A11: RockDensity | B11: kg/m3 | C11: 0 | D11: =VLOOKUP('Input Sheet'!B11,Tables!A107:C122,3,FALSE) -> 2600 | E11: 0 | G11: C
A12: WaterDensity | B12: kg/m3 | C12: 0 | D12: =VLOOKUP('Input Sheet'!C8,Tables!A128:B179,2,TRUE) ->  | E12: 0 | G12: C
A13: RecoveryFactor | B13: % | C13: 0.08 | D13: 0.14 | E13: 0.2 | G13: U
A14: ConversionEfficiency | B14: % | C14: =IF(ISBLANK('Input Sheet'!D27),'Input Sheet'!C26,'Input Sheet'!D26) -> - | D14: =IF(ISBLANK('Input Sheet'!D27),'Input Sheet'!C27,'Input Sheet'!D27) -> 0.08 | E14: =IF(ISBLANK('Input Sheet'!D27),'Input Sheet'!C28,'Input Sheet'!D28) -> - | F14: ='Input Sheet'!D29 -> 0 | G14: =IF('Input Sheet'!D30="-","C",IF('Input Sheet'!D30="Triangular","T",IF('Input Sheet'!D30="Constant","C",IF('Input Sheet'!D30="Uniform","U",IF('Input Sheet'!D30="Normal","N",IF('Input Sheet'!D30="Lognormal","L","C")))))) -> C
A15: PowerFactor | B15: % | C15: 0.9 | D15: 0.95 | E15: 1 | G15: T
A16: LifeSpan | B16: years | C16: 0 | D16: =IF(ISBLANK('Input Sheet'!C20),'Input Sheet'!B20,'Input Sheet'!C20) -> 30 | E16: 0 | G16: C
A17: UtilizationFactor (Direct Use) | B17: % | C17: =IF(ISBLANK('Input Sheet'!D55),'Input Sheet'!C54,'Input Sheet'!D54) -> 0.4 | D17: =IF(ISBLANK('Input Sheet'!D55),'Input Sheet'!C55,'Input Sheet'!D55) -> 0.48 | E17: =IF(ISBLANK('Input Sheet'!D55),'Input Sheet'!C56,'Input Sheet'!D56) -> 0.5 | F17: =IF(ISBLANK('Input Sheet'!D55),'Input Sheet'!C57,'Input Sheet'!D57) -> - | G17: =IF('Input Sheet'!D58="-","U", IF('Input Sheet'!D58="Triangular","T",IF('Input Sheet'!D58="Constant","C",IF('Input Sheet'!D58="Uniform","U",IF('Input Sheet'!D58="Normal","N",IF('Input Sheet'!D58="Lognormal","L","U")))))) -> U
A18: Thermal Efficiency (Direct Use) | B18: % | C18: =IF(ISBLANK('Input Sheet'!D40),'Input Sheet'!C39,'Input Sheet'!D39) -> 0.6 | D18: =IF(ISBLANK('Input Sheet'!D40),'Input Sheet'!C40,'Input Sheet'!D40) -> 0.7 | E18: =IF(ISBLANK('Input Sheet'!D40),'Input Sheet'!C41,'Input Sheet'!D41) -> 0.8 | F18: =IF(ISBLANK('Input Sheet'!D42),'Input Sheet'!C42,'Input Sheet'!D42) -> 0 | G18: =IF('Input Sheet'!D43="-","U", IF('Input Sheet'!D43="Triangular","T",IF('Input Sheet'!D43="Constant","C",IF('Input Sheet'!D43="Uniform","U",IF('Input Sheet'!D43="Normal","N",IF('Input Sheet'!D43="Lognormal","L","U")))))) -> U
A19: Use Temperature | B19: C | C19: 0 | D19: ='Input Sheet'!C8 -> 0 | E19: 0 | G19: C
A20: Flow Rate | B20: L/s | C20: ='Input Sheet'!B9 -> 0 | D20: ='Input Sheet'!C9 -> 0 | E20: ='Input Sheet'!D9 -> 0 | F20: ='Input Sheet'!E9 -> 0 | G20: =IF('Input Sheet'!F9="Triangular","T",IF('Input Sheet'!F9="Constant","C",IF('Input Sheet'!F9="Uniform","U",IF('Input Sheet'!F9="Normal","N",IF('Input Sheet'!F9="Lognormal","L","T"))))) -> T

Sheet Monte Carlo Calculations
A1: Random numbers for use in distribution (minimize these) | T1: Volumetric: Qr+w | U1: DU: Qr+w (accessible resource base) | V1: Volumetric: P | W1: Power Density | X1: Power using flow rate | Y1: DU: Resource (with factors) | Z1: DU: Beneficial heat using Flow rate | AA1: Total MW available
A2: 1 | B2: =+INDEX(B$15:B$10015,newrun,0) -> Input parameters incomplete | C2: =+INDEX(C$15:C$10015,newrun,0) -> Input parameters incomplete | D2: =+INDEX(D$15:D$10015,newrun,0) -> Input parameters incomplete | E2: =+INDEX(E$15:E$10015,newrun,0) -> Input parameters incomplete | F2: =+INDEX(F$15:F$10015,newrun,0) -> 70 | G2: =+INDEX(G$15:G$10015,newrun,0) -> 0.02244264179 | H2: =+INDEX(H$15:H$10015,newrun,0) -> 1.043657113 | I2: =+INDEX(I$15:I$10015,newrun,0) ->  | J2: =+INDEX(J$15:J$10015,newrun,0) -> 2600 | K2: =+INDEX(K$15:K$10015,newrun,0) ->  | L2: =+INDEX(L$15:L$10015,newrun,0) -> 0.1176395632 | M2: =+INDEX(M$15:M$10015,newrun,0) -> 0.08 | N2: =+INDEX(N$15:N$10015,newrun,0) -> 0.932170156 | O2: =+INDEX(O$15:O$10015,newrun,0) -> 30 | P2: =+INDEX(P$15:P$10015,newrun,0) -> 0.4060618502 | Q2: =+INDEX(Q$15:Q$10015,newrun,0) -> 0.6527338751 | R2: =+INDEX(R$15:R$10015,newrun,0) -> 0 | S2: Model--> | T2: =IF(D12=0, (('Monte Carlo Calculations'!J2*'Monte Carlo Calculations'!H2*(1-'Monte Carlo Calculations'!G2)+'Monte Carlo Calculations'!K2*'Monte Carlo Calculations'!I2*'Monte Carlo Calculations'!G2)*('Monte Carlo Calculations'!B2*1000000)*'Monte Carlo Calculations'!C2*('Monte Carlo Calculations'!E2-'Monte Carlo Calculations'!F2)), (('Monte Carlo Calculations'!J2*'Monte Carlo Calculations'!H2*(1-'Monte Carlo Calculations'!G2)+'Monte Carlo Calculations'!K2*'Monte Carlo Calculations'!I2*'Monte Carlo Calculations'!G2)*('Monte Carlo Calculations'!D2*1000000000)*('Monte Carlo Calculations'!E2-'Monte Carlo Calculations'!F2))) ->  | U2: =IF(D12=0, (('Monte Carlo Calculations'!J2*'Monte Carlo Calculations'!H2*(1-'Monte Carlo Calculations'!G2)+'Monte Carlo Calculations'!K2*'Monte Carlo Calculations'!I2*'Monte Carlo Calculations'!G2)*('Monte Carlo Calculations'!B2*1000000)*'Monte Carlo Calculations'!C2*('Monte Carlo Calculations'!E2-S9)), (('Monte Carlo Calculations'!J2*'Monte Carlo Calculations'!H2*(1-'Monte Carlo Calculations'!G2)+'Monte Carlo Calculations'!K2*'Monte Carlo Calculations'!I2*'Monte Carlo Calculations'!G2)*('Monte Carlo Calculations'!D2*1000000000)*('Monte Carlo Calculations'!E2-S9))) ->  | V2: =((T2*L2*M2)/(N2*O2*31540000000)) ->  | W2: =IF('Input Sheet'!B12<>"Primarily compressional Arc-volcanic setting",9.7*B2,(0.4084*EXP(0.0144*E2)*B2)) ->  | X2: =(R2*(E2-F2)*I2*M2*K2)/(N2*10^9) ->  | Y2: =((U2*L2*Q2)/(P2*O2*31540000000)) ->  | Z2: =(R2*(E2-S9)*I2*Q2*K2)/(P2*10^9) ->  | AA2: =((U2*L2)/(O2*31540000000)) -> 
A3: ↑ cell above is named "CurrentRun" to use in VBA ↑
A4: iterations | B4: ='Input Sheet'!B14 -> 1000
B6: Area | C6: Thickness | D6: Volume | E6: Reservoir Temperature | F6: Abandonment Temperature | G6: Porosity | H6: Rock Specific Heat | I6: Water Specific Heat | J6: Rock Density | K6: Water Density | L6: Recovery Factor | M6: Conversion Efficiency | N6: Power Factor | O6: Life Span | P6: Capacity/utilization/load Factor - DU/Cascaded | Q6: Heat exchange efficiency | R6: Flow Rate | S6: Reference Temp
A7: Range of triangular distribution | B7: =+RAND() -> 0.8226039361 | C7: =+RAND() -> 0.8637311837 | D7: 0.6678185034 | E7: 0.484295116 | F7: 0.6419898904 | G7: 0.9369823477 | H7: 0.5494047331 | I7: 0.4177708613 | J7: 0.7220579954 | K7: 0.8840464085 | L7: 0.2295745896 | M7: 0.444731396 | N7: 0.7452219138 | O7: 0.2363290583 | P7: 0.6748048554 | Q7: 0.7835811951 | R7: 0.6955620037
A8: Min | B8: ='Equation inputs+defaults'!C3 -> 0 | C8: ='Equation inputs+defaults'!C4 -> 0 | D8: ='Equation inputs+defaults'!C5 -> 0 | E8: ='Equation inputs+defaults'!C6 -> 0 | F8: ='Equation inputs+defaults'!C7 -> 0 | G8: ='Equation inputs+defaults'!C8 -> 0 | H8: ='Equation inputs+defaults'!C9 -> 0.97 | I8: ='Equation inputs+defaults'!C10 -> 0 | J8: ='Equation inputs+defaults'!C11 -> 0 | K8: ='Equation inputs+defaults'!C12 -> 0 | L8: ='Equation inputs+defaults'!C13 -> 0.08 | M8: ='Equation inputs+defaults'!C14 -> - | N8: ='Equation inputs+defaults'!C15 -> 0.9 | O8: ='Equation inputs+defaults'!C16 -> 0 | P8: ='Equation inputs+defaults'!C17 -> 0.4 | Q8: ='Equation inputs+defaults'!C18 -> 0.6 | R8: ='Equation inputs+defaults'!C20 -> 0
A9: Mean | B9: ='Equation inputs+defaults'!D3 -> 0 | C9: ='Equation inputs+defaults'!D4 -> 0 | D9: ='Equation inputs+defaults'!D5 -> 0 | E9: ='Equation inputs+defaults'!D6 -> 0 | F9: ='Equation inputs+defaults'!D7 -> 70 | G9: ='Equation inputs+defaults'!D8 -> 0.06 | H9: ='Equation inputs+defaults'!D9 -> 1.07 | I9: ='Equation inputs+defaults'!D10 ->  | J9: ='Equation inputs+defaults'!D11 -> 2600 | K9: ='Equation inputs+defaults'!D12 ->  | L9: ='Equation inputs+defaults'!D13 -> 0.14 | M9: ='Equation inputs+defaults'!D14 -> 0.08 | N9: ='Equation inputs+defaults'!D15 -> 0.95 | O9: ='Equation inputs+defaults'!D16 -> 30 | P9: ='Equation inputs+defaults'!D17 -> 0.48 | Q9: ='Equation inputs+defaults'!D18 -> 0.7 | R9: ='Equation inputs+defaults'!D20 -> 0 | S9: =IF(ISBLANK('Input Sheet'!C46),'Input Sheet'!B46,'Input Sheet'!C46) -> 15
A10: Max | B10: ='Equation inputs+defaults'!E3 -> 0 | C10: ='Equation inputs+defaults'!E4 -> 0 | D10: ='Equation inputs+defaults'!E5 -> 0 | E10: ='Equation inputs+defaults'!E6 -> 0 | F10: ='Equation inputs+defaults'!E7 -> 0 | G10: ='Equation inputs+defaults'!E8 -> 0 | H10: ='Equation inputs+defaults'!E9 -> 1.17 | I10: ='Equation inputs+defaults'!E10 -> 0 | J10: ='Equation inputs+defaults'!E11 -> 0 | K10: ='Equation inputs+defaults'!E12 -> 0 | L10: ='Equation inputs+defaults'!E13 -> 0.2 | M10: ='Equation inputs+defaults'!E14 -> - | N10: ='Equation inputs+defaults'!E15 -> 1 | O10: ='Equation inputs+defaults'!E16 -> 0 | P10: ='Equation inputs+defaults'!E17 -> 0.5 | Q10: ='Equation inputs+defaults'!E18 -> 0.8 | R10: ='Equation inputs+defaults'!E20 -> 0
A11: Std. Dev | B11: ='Equation inputs+defaults'!F3 -> 0 | C11: ='Equation inputs+defaults'!F4 -> 0 | D11: ='Equation inputs+defaults'!F5 -> 0 | E11: ='Equation inputs+defaults'!F6 -> 0 | F11: ='Equation inputs+defaults'!F7 -> 0 | G11: ='Equation inputs+defaults'!F8 -> 0.02 | H11: ='Equation inputs+defaults'!F9 -> 0 | I11: ='Equation inputs+defaults'!F10 -> 0 | J11: ='Equation inputs+defaults'!F11 -> 0 | K11: ='Equation inputs+defaults'!F12 -> 0 | L11: ='Equation inputs+defaults'!F13 -> 0 | M11: ='Equation inputs+defaults'!F14 -> 0 | N11: ='Equation inputs+defaults'!F15 -> 0 | O11: ='Equation inputs+defaults'!F16 -> 0 | P11: ='Equation inputs+defaults'!F17 -> - | Q11: ='Equation inputs+defaults'!F18 -> 0 | R11: ='Equation inputs+defaults'!F20 -> 0
A12: One calculation for input parameters: | B12: =IF('Equation inputs+defaults'!G3="T",(IF((B10<>B8),IF(B7<=(B9-B8)/(B10-B8),B8+SQRT(B7*(B10-B8)*(B9-B8)),B10-SQRT((1-B7)*(B10-B8)*(-B9+B10))),B9)),IF('Equation inputs+defaults'!G3="N",_xlfn.NORM.INV(B7,B9,B11),IF('Equation inputs+defaults'!G3="L",_xlfn.LOGNORM.INV(B7,B9,B11),IF('Equation inputs+defaults'!G3="C",B9,IF('Equation inputs+defaults'!G3="U",B7*(B10-B8)+B8,"Input parameters incomplete"))))) -> Input parameters incomplete | C12: =IF('Equation inputs+defaults'!G4="T",(IF((C10<>C8),IF(C7<=(C9-C8)/(C10-C8),C8+SQRT(C7*(C10-C8)*(C9-C8)),C10-SQRT((1-C7)*(C10-C8)*(-C9+C10))),C9)),IF('Equation inputs+defaults'!G4="N",_xlfn.NORM.INV(C7,C9,C11),IF('Equation inputs+defaults'!G4="L",_xlfn.LOGNORM.INV(C7,C9,C11),IF('Equation inputs+defaults'!G4="C",C9,IF('Equation inputs+defaults'!G4="U",C7*(C10-C8)+C8,"Input parameters incomplete"))))) -> Input parameters incomplete | D12: =IF('Equation inputs+defaults'!G5="T",(IF((D10<>D8),IF(D7<=(D9-D8)/(D10-D8),D8+SQRT(D7*(D10-D8)*(D9-D8)),D10-SQRT((1-D7)*(D10-D8)*(-D9+D10))),D9)),IF('Equation inputs+defaults'!G5="N",_xlfn.NORM.INV(D7,D9,D11),IF('Equation inputs+defaults'!G5="L",_xlfn.LOGNORM.INV(D7,D9,D11),IF('Equation inputs+defaults'!G5="C",D9,IF('Equation inputs+defaults'!G5="U",D7*(D10-D8)+D8,"Input parameters incomplete"))))) -> Input parameters incomplete | E12: =IF('Equation inputs+defaults'!G6="T",(IF((E10<>E8),IF(E7<=(E9-E8)/(E10-E8),E8+SQRT(E7*(E10-E8)*(E9-E8)),E10-SQRT((1-E7)*(E10-E8)*(-E9+E10))),E9)),IF('Equation inputs+defaults'!G6="N",_xlfn.NORM.INV(E7,E9,E11),IF('Equation inputs+defaults'!G6="L",_xlfn.LOGNORM.INV(E7,E9,E11),IF('Equation inputs+defaults'!G6="C",E9,IF('Equation inputs+defaults'!G6="U",E7*(E10-E8)+E8,"Input parameters incomplete"))))) -> Input parameters incomplete | F12: =IF('Equation inputs+defaults'!G7="T",(IF((F10<>F8),IF(F7<=(F9-F8)/(F10-F8),F8+SQRT(F7*(F10-F8)*(F9-F8)),F10-SQRT((1-F7)*(F10-F8)*(-F9+F10))),F9)),IF('Equation inputs+defaults'!G7="N",_xlfn.NORM.INV(F7,F9,F11),IF('Equation inputs+defaults'!G7="L",_xlfn.LOGNORM.INV(F7,F9,F11),IF('Equation inputs+defaults'!G7="C",F9,IF('Equation inputs+defaults'!G7="U",F7*(F10-F8)+F8,"Input parameters incomplete"))))) -> 70 | G12: =IF('Equation inputs+defaults'!G8="T",(IF((G10<>G8),IF(G7<=(G9-G8)/(G10-G8),G8+SQRT(G7*(G10-G8)*(G9-G8)),G10-SQRT((1-G7)*(G10-G8)*(-G9+G10))),G9)),IF('Equation inputs+defaults'!G8="N",_xlfn.NORM.INV(G7,G9,G11),IF('Equation inputs+defaults'!G8="L",_xlfn.LOGNORM.INV(G7,G9,G11),IF('Equation inputs+defaults'!G8="C",G9,IF('Equation inputs+defaults'!G8="U",G7*(G10-G8)+G8,"Input parameters incomplete"))))) -> 0.09059849918 | H12: =IF('Equation inputs+defaults'!G9="T",(IF((H10<>H8),IF(H7<=(H9-H8)/(H10-H8),H8+SQRT(H7*(H10-H8)*(H9-H8)),H10-SQRT((1-H7)*(H10-H8)*(-H9+H10))),H9)),IF('Equation inputs+defaults'!G9="N",_xlfn.NORM.INV(H7,H9,H11),IF('Equation inputs+defaults'!G9="L",_xlfn.LOGNORM.INV(H7,H9,H11),IF('Equation inputs+defaults'!G9="C",H9,IF('Equation inputs+defaults'!G9="U",H7*(H10-H8)+H8,"Input parameters incomplete"))))) -> 1.075068944 | I12: =IF('Equation inputs+defaults'!G10="T",(IF((I10<>I8),IF(I7<=(I9-I8)/(I10-I8),I8+SQRT(I7*(I10-I8)*(I9-I8)),I10-SQRT((1-I7)*(I10-I8)*(-I9+I10))),I9)),IF('Equation inputs+defaults'!G10="N",_xlfn.NORM.INV(I7,I9,I11),IF('Equation inputs+defaults'!G10="L",_xlfn.LOGNORM.INV(I7,I9,I11),IF('Equation inputs+defaults'!G10="C",I9,IF('Equation inputs+defaults'!G10="U",I7*(I10-I8)+I8,"Input parameters incomplete"))))) ->  | J12: =IF('Equation inputs+defaults'!G11="T",(IF((J10<>J8),IF(J7<=(J9-J8)/(J10-J8),J8+SQRT(J7*(J10-J8)*(J9-J8)),J10-SQRT((1-J7)*(J10-J8)*(-J9+J10))),J9)),IF('Equation inputs+defaults'!G11="N",_xlfn.NORM.INV(J7,J9,J11),IF('Equation inputs+defaults'!G11="L",_xlfn.LOGNORM.INV(J7,J9,J11),IF('Equation inputs+defaults'!G11="C",J9,IF('Equation inputs+defaults'!G11="U",J7*(J10-J8)+J8,"Input parameters incomplete"))))) -> 2600 | K12: =IF('Equation inputs+defaults'!G12="T",(IF((K10<>K8),IF(K7<=(K9-K8)/(K10-K8),K8+SQRT(K7*(K10-K8)*(K9-K8)),K10-SQRT((1-K7)*(K10-K8)*(-K9+K10))),K9)),IF('Equation inputs+defaults'!G12="N",_xlfn.NORM.INV(K7,K9,K11),IF('Equation inputs+defaults'!G12="L",_xlfn.LOGNORM.INV(K7,K9,K11),IF('Equation inputs+defaults'!G12="C",K9,IF('Equation inputs+defaults'!G12="U",K7*(K10-K8)+K8,"Input parameters incomplete"))))) ->  | L12: =IF('Equation inputs+defaults'!G13="T",(IF((L10<>L8),IF(L7<=(L9-L8)/(L10-L8),L8+SQRT(L7*(L10-L8)*(L9-L8)),L10-SQRT((1-L7)*(L10-L8)*(-L9+L10))),L9)),IF('Equation inputs+defaults'!G13="N",_xlfn.NORM.INV(L7,L9,L11),IF('Equation inputs+defaults'!G13="L",_xlfn.LOGNORM.INV(L7,L9,L11),IF('Equation inputs+defaults'!G13="C",L9,IF('Equation inputs+defaults'!G13="U",L7*(L10-L8)+L8,"Input parameters incomplete"))))) -> 0.1075489508 | M12: =IF('Equation inputs+defaults'!G14="T",(IF((M10<>M8),IF(M7<=(M9-M8)/(M10-M8),M8+SQRT(M7*(M10-M8)*(M9-M8)),M10-SQRT((1-M7)*(M10-M8)*(-M9+M10))),M9)),IF('Equation inputs+defaults'!G14="N",_xlfn.NORM.INV(M7,M9,M11),IF('Equation inputs+defaults'!G14="L",_xlfn.LOGNORM.INV(M7,M9,M11),IF('Equation inputs+defaults'!G14="C",M9,IF('Equation inputs+defaults'!G14="U",M7*(M10-M8)+M8,"Input parameters incomplete"))))) -> 0.08 | N12: =IF('Equation inputs+defaults'!G15="T",(IF((N10<>N8),IF(N7<=(N9-N8)/(N10-N8),N8+SQRT(N7*(N10-N8)*(N9-N8)),N10-SQRT((1-N7)*(N10-N8)*(-N9+N10))),N9)),IF('Equation inputs+defaults'!G15="N",_xlfn.NORM.INV(N7,N9,N11),IF('Equation inputs+defaults'!G15="L",_xlfn.LOGNORM.INV(N7,N9,N11),IF('Equation inputs+defaults'!G15="C",N9,IF('Equation inputs+defaults'!G15="U",N7*(N10-N8)+N8,"Input parameters incomplete"))))) -> 0.9643083983 | O12: =IF('Equation inputs+defaults'!G16="T",(IF((O10<>O8),IF(O7<=(O9-O8)/(O10-O8),O8+SQRT(O7*(O10-O8)*(O9-O8)),O10-SQRT((1-O7)*(O10-O8)*(-O9+O10))),O9)),IF('Equation inputs+defaults'!G16="N",_xlfn.NORM.INV(O7,O9,O11),IF('Equation inputs+defaults'!G16="L",_xlfn.LOGNORM.INV(O7,O9,O11),IF('Equation inputs+defaults'!G16="C",O9,IF('Equation inputs+defaults'!G16="U",O7*(O10-O8)+O8,"Input parameters incomplete"))))) -> 30 | P12: =IF('Equation inputs+defaults'!G17="T",(IF((P10<>P8),IF(P7<=(P9-P8)/(P10-P8),P8+SQRT(P7*(P10-P8)*(P9-P8)),P10-SQRT((1-P7)*(P10-P8)*(-P9+P10))),P9)),IF('Equation inputs+defaults'!G17="N",_xlfn.NORM.INV(P7,P9,P11),IF('Equation inputs+defaults'!G17="L",_xlfn.LOGNORM.INV(P7,P9,P11),IF('Equation inputs+defaults'!G17="C",P9,IF('Equation inputs+defaults'!G17="U",P7*(P10-P8)+P8,"Input parameters incomplete"))))) -> 0.4674804855 | Q12: =IF('Equation inputs+defaults'!G18="T",(IF((Q10<>Q8),IF(Q7<=(Q9-Q8)/(Q10-Q8),Q8+SQRT(Q7*(Q10-Q8)*(Q9-Q8)),Q10-SQRT((1-Q7)*(Q10-Q8)*(-Q9+Q10))),Q9)),IF('Equation inputs+defaults'!G18="N",_xlfn.NORM.INV(Q7,Q9,Q11),IF('Equation inputs+defaults'!G18="L",_xlfn.LOGNORM.INV(Q7,Q9,Q11),IF('Equation inputs+defaults'!G18="C",Q9,IF('Equation inputs+defaults'!G18="U",Q7*(Q10-Q8)+Q8,"Input parameters incomplete"))))) -> 0.756716239 | R12: =IF('Equation inputs+defaults'!G20="T",(IF((R10<>R8),IF(R7<=(R9-R8)/(R10-R8),R8+SQRT(R7*(R10-R8)*(R9-R8)),R10-SQRT((1-R7)*(R10-R8)*(-R9+R10))),R9)),IF('Equation inputs+defaults'!G20="N",_xlfn.NORM.INV(R7,R9,R11),IF('Equation inputs+defaults'!G20="L",_xlfn.LOGNORM.INV(R7,R9,R11),IF('Equation inputs+defaults'!G20="C",R9,IF('Equation inputs+defaults'!G20="U",R7*(R10-R8)+R8,"Input parameters incomplete"))))) -> 0
A14: Monte Carlo seed line number# | B14: Inputs/Seed | V14: Outputs/Results
B15: Input parameters incomplete | C15: Input parameters incomplete | D15: Input parameters incomplete | E15: Input parameters incomplete | F15: 70 | G15: 0.02244264179 | H15: 1.043657113 | J15: 2600 | L15: 0.1176395632 | M15: 0.08 | N15: 0.932170156 | O15: 30 | P15: 0.4060618502 | Q15: 0.6527338751 | R15: 0 | AA15: 168.7224418
B16: Input parameters incomplete | C16: Input parameters incomplete | D16: Input parameters incomplete | E16: Input parameters incomplete | F16: 70 | G16: 0.05114955448 | H16: 1.022462503 | J16: 2600 | L16: 0.09784124475 | M16: 0.08 | N16: 0.9482336036 | O16: 30 | P16: 0.4586301189 | Q16: 0.7726478465 | R16: 0 | AA16: 147.9238786
B17: Input parameters incomplete | C17: Input parameters incomplete | D17: Input parameters incomplete | E17: Input parameters incomplete | F17: 70 | G17: 0.04556637868 | H17: 1.130080895 | J17: 2600 | L17: 0.09710356397 | M17: 0.08 | N17: 0.9530627272 | O17: 30 | P17: 0.4930985694 | Q17: 0.70609629 | R17: 0 | AA17: 277.8948471
B18: Input parameters incomplete | C18: Input parameters incomplete | D18: Input parameters incomplete | E18: Input parameters incomplete | F18: 70 | G18: 0.07777924817 | H18: 1.12526247 | J18: 2600 | L18: 0.1665710329 | M18: 0.08 | N18: 0.9280989598 | O18: 30 | P18: 0.4507836165 | Q18: 0.6513463109 | R18: 0 | AA18: 226.6271316
B19: Input parameters incomplete | C19: Input parameters incomplete | D19: Input parameters incomplete | E19: Input parameters incomplete | F19: 70 | G19: 0.03957917363 | H19: 1.143621825 | J19: 2600 | L19: 0.1529686523 | M19: 0.08 | N19: 0.9650162733 | O19: 30 | P19: 0.4724124838 | Q19: 0.621201689 | R19: 0 | AA19: 244.4792411
B20: Input parameters incomplete | C20: Input parameters incomplete | D20: Input parameters incomplete | E20: Input parameters incomplete | F20: 70 | G20: 0.09552140712 | H20: 1.129987256 | J20: 2600 | L20: 0.1016364386 | M20: 0.08 | N20: 0.949575212 | O20: 30 | P20: 0.4388359886 | Q20: 0.748311072 | R20: 0 | AA20: 182.6325757
B21: Input parameters incomplete | C21: Input parameters incomplete | D21: Input parameters incomplete | E21: Input parameters incomplete | F21: 70 | G21: 0.06817827425 | H21: 1.01899636 | J21: 2600 | L21: 0.1526094528 | M21: 0.08 | N21: 0.9311262986 | O21: 30 | P21: 0.4267880042 | Q21: 0.7772713309 | R21: 0 | AA21: 190.6561059
B22: Input parameters incomplete | C22: Input parameters incomplete | D22: Input parameters incomplete | E22: Input parameters incomplete | F22: 70 | G22: 0.03995845006 | H22: 1.041874097 | J22: 2600 | L22: 0.09700363568 | M22: 0.08 | N22: 0.9377410129 | O22: 30 | P22: 0.4202788706 | Q22: 0.6918198666 | R22: 0 | AA22: 182.0218382
B23: Input parameters incomplete | C23: Input parameters incomplete | D23: Input parameters incomplete | E23: Input parameters incomplete | F23: 70 | G23: 0.01476858673 | H23: 1.03155692 | J23: 2600 | L23: 0.1168664394 | M23: 0.08 | N23: 0.9309799595 | O23: 30 | P23: 0.4045730621 | Q23: 0.7623906382 | R23: 0 | AA23: 252.9265686
B24: Input parameters incomplete | C24: Input parameters incomplete | D24: Input parameters incomplete | E24: Input parameters incomplete | F24: 70 | G24: 0.07809029829 | H24: 1.055265874 | J24: 2600 | L24: 0.1639625616 | M24: 0.08 | N24: 0.9260785904 | O24: 30 | P24: 0.4868706103 | Q24: 0.7810769428 | R24: 0 | AA24: 181.5565093
B25: Input parameters incomplete | C25: Input parameters incomplete | D25: Input parameters incomplete | E25: Input parameters incomplete | F25: 70 | G25: 0.06683083446 | H25: 1.098274469 | J25: 2600 | L25: 0.09739224767 | M25: 0.08 | N25: 0.9284288497 | O25: 30 | P25: 0.487954596 | Q25: 0.7394424407 | R25: 0 | AA25: 288.9946903
B26: Input parameters incomplete | C26: Input parameters incomplete | D26: Input parameters incomplete | E26: Input parameters incomplete | F26: 70 | G26: 0.04031422569 | H26: 1.098142853 | J26: 2600 | L26: 0.08934040952 | M26: 0.08 | N26: 0.9639160847 | O26: 30 | P26: 0.4603826149 | Q26: 0.7253149951 | R26: 0 | AA26: 236.5339388
B27: Input parameters incomplete | C27: Input parameters incomplete | D27: Input parameters incomplete | E27: Input parameters incomplete | F27: 70 | G27: 0.05317655484 | H27: 1.085540492 | J27: 2600 | L27: 0.1207529818 | M27: 0.08 | N27: 0.9575188128 | O27: 30 | P27: 0.4694584758 | Q27: 0.6763101643 | R27: 0 | AA27: 127.2627625
B28: Input parameters incomplete | C28: Input parameters incomplete | D28: Input parameters incomplete | E28: Input parameters incomplete | F28: 70 | G28: 0.07246118252 | H28: 1.096956183 | J28: 2600 | L28: 0.182923617 | M28: 0.08 | N28: 0.9703473738 | O28: 30 | P28: 0.4518846966 | Q28: 0.7390450928 | R28: 0 | AA28: 273.3323382
B29: Input parameters incomplete | C29: Input parameters incomplete | D29: Input parameters incomplete | E29: Input parameters incomplete | F29: 70 | G29: 0.09468255278 | H29: 1.071071762 | J29: 2600 | L29: 0.09258414 | M29: 0.08 | N29: 0.9533294364 | O29: 30 | P29: 0.4244118651 | Q29: 0.6160540699 | R29: 0 | AA29: 270.8427414
B30: Input parameters incomplete | C30: Input parameters incomplete | D30: Input parameters incomplete | E30: Input parameters incomplete | F30: 70 | G30: 0.07903983998 | H30: 1.116871922 | J30: 2600 | L30: 0.1020451756 | M30: 0.08 | N30: 0.9541949244 | O30: 30 | P30: 0.4654570211 | Q30: 0.6333747696 | R30: 0 | AA30: 116.4866404
B31: Input parameters incomplete | C31: Input parameters incomplete | D31: Input parameters incomplete | E31: Input parameters incomplete | F31: 70 | G31: 0.04218992513 | H31: 1.038252577 | J31: 2600 | L31: 0.1564124803 | M31: 0.08 | N31: 0.9931294991 | O31: 30 | P31: 0.4384007574 | Q31: 0.7305029693 | R31: 0 | AA31: 222.9008504
B32: Input parameters incomplete | C32: Input parameters incomplete | D32: Input parameters incomplete | E32: Input parameters incomplete | F32: 70 | G32: 0.08163935669 | H32: 1.042052056 | J32: 2600 | L32: 0.1228223342 | M32: 0.08 | N32: 0.9540648985 | O32: 30 | P32: 0.4007712154 | Q32: 0.6301039188 | R32: 0 | AA32: 116.9252364
B33: Input parameters incomplete | C33: Input parameters incomplete | D33: Input parameters incomplete | E33: Input parameters incomplete | F33: 70 | G33: 0.04471709678 | H33: 1.03964502 | J33: 2600 | L33: 0.1842244093 | M33: 0.08 | N33: 0.9453979115 | O33: 30 | P33: 0.4516612667 | Q33: 0.6992971089 | R33: 0 | AA33: 126.1767148
B34: Input parameters incomplete | C34: Input parameters incomplete | D34: Input parameters incomplete | E34: Input parameters incomplete | F34: 70 | G34: 0.02600556811 | H34: 1.073917117 | J34: 2600 | L34: 0.1412545276 | M34: 0.08 | N34: 0.9287052537 | O34: 30 | P34: 0.4479664603 | Q34: 0.734627927 | R34: 0 | AA34: 162.5869502
B35: Input parameters incomplete | C35: Input parameters incomplete | D35: Input parameters incomplete | E35: Input parameters incomplete | F35: 70 | G35: 0.07150660177 | H35: 1.10279936 | J35: 2600 | L35: 0.1129382295 | M35: 0.08 | N35: 0.9654918876 | O35: 30 | P35: 0.4197286681 | Q35: 0.6721062605 | R35: 0 | AA35: 231.9075566
B36: Input parameters incomplete | C36: Input parameters incomplete | D36: Input parameters incomplete | E36: Input parameters incomplete | F36: 70 | G36: 0.06520657316 | H36: 1.071486496 | J36: 2600 | L36: 0.1563362533 | M36: 0.08 | N36: 0.9384320321 | O36: 30 | P36: 0.4972477083 | Q36: 0.6778223797 | R36: 0 | AA36: 206.8857344
B37: Input parameters incomplete | C37: Input parameters incomplete | D37: Input parameters incomplete | E37: Input parameters incomplete | F37: 70 | G37: 0.03722851748 | H37: 1.013343426 | J37: 2600 | L37: 0.1715575035 | M37: 0.08 | N37: 0.9319357118 | O37: 30 | P37: 0.4298240576 | Q37: 0.6110090074 | R37: 0 | AA37: 266.4095918
B38: Input parameters incomplete | C38: Input parameters incomplete | D38: Input parameters incomplete | E38: Input parameters incomplete | F38: 70 | G38: 0.06102003679 | H38: 0.9944968838 | J38: 2600 | L38: 0.1993944567 | M38: 0.08 | N38: 0.9369355792 | O38: 30 | P38: 0.4704169467 | Q38: 0.7534449098 | R38: 0 | AA38: 180.551915
B39: Input parameters incomplete | C39: Input parameters incomplete | D39: Input parameters incomplete | E39: Input parameters incomplete | F39: 70 | G39: 0.07028217355 | H39: 1.063736878 | J39: 2600 | L39: 0.1358926236 | M39: 0.08 | N39: 0.9141104834 | O39: 30 | P39: 0.4514644527 | Q39: 0.6721568914 | R39: 0 | AA39: 112.8286735
B40: Input parameters incomplete | C40: Input parameters incomplete | D40: Input parameters incomplete | E40: Input parameters incomplete | F40: 70 | G40: 0.02796390364 | H40: 1.019756234 | J40: 2600 | L40: 0.08685900251 | M40: 0.08 | N40: 0.9527474599 | O40: 30 | P40: 0.4383614301 | Q40: 0.6650139256 | R40: 0 | AA40: 121.1689629
B41: Input parameters incomplete | C41: Input parameters incomplete | D41: Input parameters incomplete | E41: Input parameters incomplete | F41: 70 | G41: 0.03279633606 | H41: 1.029052206 | J41: 2600 | L41: 0.1774624425 | M41: 0.08 | N41: 0.9560262068 | O41: 30 | P41: 0.4580271053 | Q41: 0.6963197875 | R41: 0 | AA41: 146.0722957
B42: Input parameters incomplete | C42: Input parameters incomplete | D42: Input parameters incomplete | E42: Input parameters incomplete | F42: 70 | G42: 0.07553820911 | H42: 1.060109039 | J42: 2600 | L42: 0.1499220328 | M42: 0.08 | N42: 0.9743463366 | O42: 30 | P42: 0.4608048931 | Q42: 0.7560678666 | R42: 0 | AA42: 180.895979
B43: Input parameters incomplete | C43: Input parameters incomplete | D43: Input parameters incomplete | E43: Input parameters incomplete | F43: 70 | G43: 0.04659280614 | H43: 1.032235101 | J43: 2600 | L43: 0.1341861448 | M43: 0.08 | N43: 0.9506586789 | O43: 30 | P43: 0.4043774784 | Q43: 0.6101733857 | R43: 0 | AA43: 174.5263455
B44: Input parameters incomplete | C44: Input parameters incomplete | D44: Input parameters incomplete | E44: Input parameters incomplete | F44: 70 | G44: 0.06041043406 | H44: 0.9985167643 | J44: 2600 | L44: 0.1971171208 | M44: 0.08 | N44: 0.970661957 | O44: 30 | P44: 0.4817525644 | Q44: 0.6171671891 | R44: 0 | AA44: 222.2453125
B45: Input parameters incomplete | C45: Input parameters incomplete | D45: Input parameters incomplete | E45: Input parameters incomplete | F45: 70 | G45: 0.03578691454 | H45: 1.043893627 | J45: 2600 | L45: 0.1520288186 | M45: 0.08 | N45: 0.9513800537 | O45: 30 | P45: 0.4172299962 | Q45: 0.7254595666 | R45: 0 | AA45: 263.201015
B46: Input parameters incomplete | C46: Input parameters incomplete | D46: Input parameters incomplete | E46: Input parameters incomplete | F46: 70 | G46: 0.0465950203 | H46: 1.057911618 | J46: 2600 | L46: 0.1232165347 | M46: 0.08 | N46: 0.9424438007 | O46: 30 | P46: 0.4706051505 | Q46: 0.7618518199 | R46: 0 | AA46: 155.6952676
B47: Input parameters incomplete | C47: Input parameters incomplete | D47: Input parameters incomplete | E47: Input parameters incomplete | F47: 70 | G47: 0.03072714938 | H47: 1.036018925 | J47: 2600 | L47: 0.1741181402 | M47: 0.08 | N47: 0.9815774017 | O47: 30 | P47: 0.4077035698 | Q47: 0.7707987873 | R47: 0 | AA47: 234.0706476
B48: Input parameters incomplete | C48: Input parameters incomplete | D48: Input parameters incomplete | E48: Input parameters incomplete | F48: 70 | G48: 0.03443657705 | H48: 1.139842254 | J48: 2600 | L48: 0.1422238156 | M48: 0.08 | N48: 0.9277104343 | O48: 30 | P48: 0.4465656685 | Q48: 0.7013227264 | R48: 0 | AA48: 183.7171989
B49: Input parameters incomplete | C49: Input parameters incomplete | D49: Input parameters incomplete | E49: Input parameters incomplete | F49: 70 | G49: 0.07217975087 | H49: 1.151685809 | J49: 2600 | L49: 0.122366124 | M49: 0.08 | N49: 0.9879712996 | O49: 30 | P49: 0.422636554 | Q49: 0.7976047289 | R49: 0 | AA49: 146.9562661
B50: Input parameters incomplete | C50: Input parameters incomplete | D50: Input parameters incomplete | E50: Input parameters incomplete | F50: 70 | G50: 0.04143565417 | H50: 1.10779771 | J50: 2600 | L50: 0.1377723043 | M50: 0.08 | N50: 0.9472484753 | O50: 30 | P50: 0.4252503304 | Q50: 0.6310927036 | R50: 0 | AA50: 119.1552094
B51: Input parameters incomplete | C51: Input parameters incomplete | D51: Input parameters incomplete | E51: Input parameters incomplete | F51: 70 | G51: 0.04397741139 | H51: 1.101588952 | J51: 2600 | L51: 0.1931101561 | M51: 0.08 | N51: 0.9811244621 | O51: 30 | P51: 0.4171751024 | Q51: 0.7978272292 | R51: 0 | AA51: 207.1682003
B52: Input parameters incomplete | C52: Input parameters incomplete | D52: Input parameters incomplete | E52: Input parameters incomplete | F52: 70 | G52: 0.06271637768 | H52: 1.104232129 | J52: 2600 | L52: 0.1381087432 | M52: 0.08 | N52: 0.9462028042 | O52: 30 | P52: 0.4726130679 | Q52: 0.6197059666 | R52: 0 | AA52: 267.1548443
B53: Input parameters incomplete | C53: Input parameters incomplete | D53: Input parameters incomplete | E53: Input parameters incomplete | F53: 70 | G53: 0.04615745282 | H53: 1.026883383 | J53: 2600 | L53: 0.1303428166 | M53: 0.08 | N53: 0.9276069263 | O53: 30 | P53: 0.4300160889 | Q53: 0.7129544345 | R53: 0 | AA53: 276.0395253
B54: Input parameters incomplete | C54: Input parameters incomplete | D54: Input parameters incomplete | E54: Input parameters incomplete | F54: 70 | G54: 0.03808686883 | H54: 1.051962789 | J54: 2600 | L54: 0.186112695 | M54: 0.08 | N54: 0.937099872 | O54: 30 | P54: 0.4627497097 | Q54: 0.7723258557 | R54: 0 | AA54: 180.8606429
B55: Input parameters incomplete | C55: Input parameters incomplete | D55: Input parameters incomplete | E55: Input parameters incomplete | F55: 70 | G55: 0.04698568821 | H55: 1.117023261 | J55: 2600 | L55: 0.09006947701 | M55: 0.08 | N55: 0.9167214782 | O55: 30 | P55: 0.4904715893 | Q55: 0.7278490657 | R55: 0 | AA55: 281.2991097
B56: Input parameters incomplete | C56: Input parameters incomplete | D56: Input parameters incomplete | E56: Input parameters incomplete | F56: 70 | G56: 0.04534350064 | H56: 1.024886333 | J56: 2600 | L56: 0.160502254 | M56: 0.08 | N56: 0.9276856129 | O56: 30 | P56: 0.4493531802 | Q56: 0.7876523338 | R56: 0 | AA56: 117.4749547
B57: Input parameters incomplete | C57: Input parameters incomplete | D57: Input parameters incomplete | E57: Input parameters incomplete | F57: 70 | G57: 0.08858546532 | H57: 0.9926636725 | J57: 2600 | L57: 0.08606575549 | M57: 0.08 | N57: 0.935768672 | O57: 30 | P57: 0.4386010232 | Q57: 0.7762017131 | R57: 0 | AA57: 281.5882415
B58: Input parameters incomplete | C58: Input parameters incomplete | D58: Input parameters incomplete | E58: Input parameters incomplete | F58: 70 | G58: 0.04035723918 | H58: 1.138646802 | J58: 2600 | L58: 0.1176706445 | M58: 0.08 | N58: 0.9642793651 | O58: 30 | P58: 0.4955971084 | Q58: 0.7526505676 | R58: 0 | AA58: 189.421009
B59: Input parameters incomplete | C59: Input parameters incomplete | D59: Input parameters incomplete | E59: Input parameters incomplete | F59: 70 | G59: 0.06107401309 | H59: 1.065880134 | J59: 2600 | L59: 0.1603870598 | M59: 0.08 | N59: 0.9785776797 | O59: 30 | P59: 0.4623011399 | Q59: 0.6282866465 | R59: 0 | AA59: 261.5442507
B60: Input parameters incomplete | C60: Input parameters incomplete | D60: Input parameters incomplete | E60: Input parameters incomplete | F60: 70 | G60: 0.07078877806 | H60: 1.129481359 | J60: 2600 | L60: 0.09548468236 | M60: 0.08 | N60: 0.9546000979 | O60: 30 | P60: 0.4553415924 | Q60: 0.6349801283 | R60: 0 | AA60: 137.899735
B61: Input parameters incomplete | C61: Input parameters incomplete | D61: Input parameters incomplete | E61: Input parameters incomplete | F61: 70 | G61: 0.0719282707 | H61: 1.084950423 | J61: 2600 | L61: 0.1547104555 | M61: 0.08 | N61: 0.9574021175 | O61: 30 | P61: 0.4936279438 | Q61: 0.7100705087 | R61: 0 | AA61: 256.0795893
B62: Input parameters incomplete | C62: Input parameters incomplete | D62: Input parameters incomplete | E62: Input parameters incomplete | F62: 70 | G62: 0.02151657228 | H62: 1.127187101 | J62: 2600 | L62: 0.1001032952 | M62: 0.08 | N62: 0.951545306 | O62: 30 | P62: 0.4030866844 | Q62: 0.6185421326 | R62: 0 | AA62: 161.8102235
B63: Input parameters incomplete | C63: Input parameters incomplete | D63: Input parameters incomplete | E63: Input parameters incomplete | F63: 70 | G63: 0.05184760528 | H63: 1.061184905 | J63: 2600 | L63: 0.08849467847 | M63: 0.08 | N63: 0.9483118605 | O63: 30 | P63: 0.4951716522 | Q63: 0.7391422559 | R63: 0 | AA63: 239.7375645
B64: Input parameters incomplete | C64: Input parameters incomplete | D64: Input parameters incomplete | E64: Input parameters incomplete | F64: 70 | G64: 0.09808678412 | H64: 1.032005898 | J64: 2600 | L64: 0.100449418 | M64: 0.08 | N64: 0.977515291 | O64: 30 | P64: 0.4891479076 | Q64: 0.6464827216 | R64: 0 | AA64: 160.420858
B65: Input parameters incomplete | C65: Input parameters incomplete | D65: Input parameters incomplete | E65: Input parameters incomplete | F65: 70 | G65: 0.06132393796 | H65: 1.028443601 | J65: 2600 | L65: 0.1287932422 | M65: 0.08 | N65: 0.9081249272 | O65: 30 | P65: 0.4858798238 | Q65: 0.6677225463 | R65: 0 | AA65: 164.1454568
B66: Input parameters incomplete | C66: Input parameters incomplete | D66: Input parameters incomplete | E66: Input parameters incomplete | F66: 70 | G66: 0.09146298797 | H66: 1.005124038 | J66: 2600 | L66: 0.08481331149 | M66: 0.08 | N66: 0.959363526 | O66: 30 | P66: 0.4883191777 | Q66: 0.6188845642 | R66: 0 | AA66: 155.5653756
B67: Input parameters incomplete | C67: Input parameters incomplete | D67: Input parameters incomplete | E67: Input parameters incomplete | F67: 70 | G67: 0.05844396896 | H67: 0.989974632 | J67: 2600 | L67: 0.1161926702 | M67: 0.08 | N67: 0.9475590011 | O67: 30 | P67: 0.4458082693 | Q67: 0.6683709088 | R67: 0 | AA67: 183.924163
B68: Input parameters incomplete | C68: Input parameters incomplete | D68: Input parameters incomplete | E68: Input parameters incomplete | F68: 70 | G68: 0.08175612374 | H68: 1.046458749 | J68: 2600 | L68: 0.1121865846 | M68: 0.08 | N68: 0.9636156416 | O68: 30 | P68: 0.4020657071 | Q68: 0.7705133499 | R68: 0 | AA68: 228.2936061
B69: Input parameters incomplete | C69: Input parameters incomplete | D69: Input parameters incomplete | E69: Input parameters incomplete | F69: 70 | G69: 0.04604968071 | H69: 1.107646305 | J69: 2600 | L69: 0.1053094867 | M69: 0.08 | N69: 0.9640282799 | O69: 30 | P69: 0.447516381 | Q69: 0.7491248365 | R69: 0 | AA69: 305.1164259
B70: Input parameters incomplete | C70: Input parameters incomplete | D70: Input parameters incomplete | E70: Input parameters incomplete | F70: 70 | G70: 0.06362388763 | H70: 1.060994579 | J70: 2600 | L70: 0.1280421839 | M70: 0.08 | N70: 0.9409226374 | O70: 30 | P70: 0.4582644255 | Q70: 0.7420462796 | R70: 0 | AA70: 225.0617508
B71: Input parameters incomplete | C71: Input parameters incomplete | D71: Input parameters incomplete | E71: Input parameters incomplete | F71: 70 | G71: 0.06824902552 | H71: 1.041864871 | J71: 2600 | L71: 0.1012136533 | M71: 0.08 | N71: 0.9696985224 | O71: 30 | P71: 0.4313838355 | Q71: 0.7692308048 | R71: 0 | AA71: 133.5754075
B72: Input parameters incomplete | C72: Input parameters incomplete | D72: Input parameters incomplete | E72: Input parameters incomplete | F72: 70 | G72: 0.05639794701 | H72: 1.08321758 | J72: 2600 | L72: 0.1932349959 | M72: 0.08 | N72: 0.9379105886 | O72: 30 | P72: 0.4164998306 | Q72: 0.6202638158 | R72: 0 | AA72: 162.9022314
B73: Input parameters incomplete | C73: Input parameters incomplete | D73: Input parameters incomplete | E73: Input parameters incomplete | F73: 70 | G73: 0.06153557331 | H73: 1.097387973 | J73: 2600 | L73: 0.1563728962 | M73: 0.08 | N73: 0.9573009362 | O73: 30 | P73: 0.438516342 | Q73: 0.7405501188 | R73: 0 | AA73: 211.3649737
B74: Input parameters incomplete | C74: Input parameters incomplete | D74: Input parameters incomplete | E74: Input parameters incomplete | F74: 70 | G74: 0.01951337176 | H74: 1.083986978 | J74: 2600 | L74: 0.0922836616 | M74: 0.08 | N74: 0.9307004458 | O74: 30 | P74: 0.4256712236 | Q74: 0.6644142004 | R74: 0 | AA74: 276.1533298
B75: Input parameters incomplete | C75: Input parameters incomplete | D75: Input parameters incomplete | E75: Input parameters incomplete | F75: 70 | G75: 0.04966781217 | H75: 1.028128499 | J75: 2600 | L75: 0.1255836289 | M75: 0.08 | N75: 0.9457496745 | O75: 30 | P75: 0.4987010624 | Q75: 0.7680464824 | R75: 0 | AA75: 223.2388766
B76: Input parameters incomplete | C76: Input parameters incomplete | D76: Input parameters incomplete | E76: Input parameters incomplete | F76: 70 | G76: 0.04992864273 | H76: 1.047281187 | J76: 2600 | L76: 0.08618597987 | M76: 0.08 | N76: 0.9880939205 | O76: 30 | P76: 0.4405329049 | Q76: 0.7552811993 | R76: 0 | AA76: 170.914931
B77: Input parameters incomplete | C77: Input parameters incomplete | D77: Input parameters incomplete | E77: Input parameters incomplete | F77: 70 | G77: 0.0605355966 | H77: 1.140171805 | J77: 2600 | L77: 0.107254713 | M77: 0.08 | N77: 0.9463918323 | O77: 30 | P77: 0.4550425257 | Q77: 0.6980181455 | R77: 0 | AA77: 173.3048893
B78: Input parameters incomplete | C78: Input parameters incomplete | D78: Input parameters incomplete | E78: Input parameters incomplete | F78: 70 | G78: 0.04620387966 | H78: 1.138955005 | J78: 2600 | L78: 0.1491942804 | M78: 0.08 | N78: 0.9532100773 | O78: 30 | P78: 0.4001404444 | Q78: 0.6365073187 | R78: 0 | AA78: 196.1027187
B79: Input parameters incomplete | C79: Input parameters incomplete | D79: Input parameters incomplete | E79: Input parameters incomplete | F79: 70 | G79: 0.07983313052 | H79: 1.053152775 | J79: 2600 | L79: 0.1795171871 | M79: 0.08 | N79: 0.9411167055 | O79: 30 | P79: 0.4430903808 | Q79: 0.7090329431 | R79: 0 | AA79: 225.2527242
B80: Input parameters incomplete | C80: Input parameters incomplete | D80: Input parameters incomplete | E80: Input parameters incomplete | F80: 70 | G80: 0.09733188139 | H80: 1.086659021 | J80: 2600 | L80: 0.1351344916 | M80: 0.08 | N80: 0.9325239845 | O80: 30 | P80: 0.4182490833 | Q80: 0.7879814946 | R80: 0 | AA80: 279.0572541
B81: Input parameters incomplete | C81: Input parameters incomplete | D81: Input parameters incomplete | E81: Input parameters incomplete | F81: 70 | G81: 0.04690212234 | H81: 1.00197298 | J81: 2600 | L81: 0.09533728558 | M81: 0.08 | N81: 0.9648508562 | O81: 30 | P81: 0.49520815 | Q81: 0.7062443217 | R81: 0 | AA81: 253.4139685
B82: Input parameters incomplete | C82: Input parameters incomplete | D82: Input parameters incomplete | E82: Input parameters incomplete | F82: 70 | G82: 0.06925285313 | H82: 1.095313568 | J82: 2600 | L82: 0.08467015033 | M82: 0.08 | N82: 0.9440943134 | O82: 30 | P82: 0.4878660428 | Q82: 0.7767416894 | R82: 0 | AA82: 158.735565
B83: Input parameters incomplete | C83: Input parameters incomplete | D83: Input parameters incomplete | E83: Input parameters incomplete | F83: 70 | G83: -0.006205766247 | H83: 1.11642547 | J83: 2600 | L83: 0.1246442396 | M83: 0.08 | N83: 0.9360436847 | O83: 30 | P83: 0.4982527031 | Q83: 0.7991911645 | R83: 0 | AA83: 176.688705
B84: Input parameters incomplete | C84: Input parameters incomplete | D84: Input parameters incomplete | E84: Input parameters incomplete | F84: 70 | G84: 0.0551175907 | H84: 1.053281501 | J84: 2600 | L84: 0.09246051836 | M84: 0.08 | N84: 0.9375666072 | O84: 30 | P84: 0.4800473529 | Q84: 0.696303098 | R84: 0 | AA84: 184.4853357
B85: Input parameters incomplete | C85: Input parameters incomplete | D85: Input parameters incomplete | E85: Input parameters incomplete | F85: 70 | G85: 0.04565628397 | H85: 1.12935745 | J85: 2600 | L85: 0.1502790829 | M85: 0.08 | N85: 0.9274263766 | O85: 30 | P85: 0.404578757 | Q85: 0.7645522608 | R85: 0 | AA85: 222.719688
B86: Input parameters incomplete | C86: Input parameters incomplete | D86: Input parameters incomplete | E86: Input parameters incomplete | F86: 70 | G86: 0.06239327157 | H86: 1.034071601 | J86: 2600 | L86: 0.1664351652 | M86: 0.08 | N86: 0.9502368342 | O86: 30 | P86: 0.4007612585 | Q86: 0.7295770999 | R86: 0 | AA86: 252.2133088
B87: Input parameters incomplete | C87: Input parameters incomplete | D87: Input parameters incomplete | E87: Input parameters incomplete | F87: 70 | G87: 0.08126305244 | H87: 1.042570121 | J87: 2600 | L87: 0.1432843041 | M87: 0.08 | N87: 0.9667400544 | O87: 30 | P87: 0.4630721602 | Q87: 0.6139823692 | R87: 0 | AA87: 208.7008295
B88: Input parameters incomplete | C88: Input parameters incomplete | D88: Input parameters incomplete | E88: Input parameters incomplete | F88: 70 | G88: 0.0819941665 | H88: 1.027425846 | J88: 2600 | L88: 0.0908212391 | M88: 0.08 | N88: 0.9410272843 | O88: 30 | P88: 0.4107672292 | Q88: 0.6709903291 | R88: 0 | AA88: 252.5485844
B89: Input parameters incomplete | C89: Input parameters incomplete | D89: Input parameters incomplete | E89: Input parameters incomplete | F89: 70 | G89: 0.07877189655 | H89: 1.030072672 | J89: 2600 | L89: 0.1042441672 | M89: 0.08 | N89: 0.9696769377 | O89: 30 | P89: 0.4107493679 | Q89: 0.7143033253 | R89: 0 | AA89: 192.6815271
B90: Input parameters incomplete | C90: Input parameters incomplete | D90: Input parameters incomplete | E90: Input parameters incomplete | F90: 70 | G90: 0.05842491098 | H90: 1.045701713 | J90: 2600 | L90: 0.1680662338 | M90: 0.08 | N90: 0.9695724403 | O90: 30 | P90: 0.4569349975 | Q90: 0.6937244099 | R90: 0 | AA90: 109.8324565
B91: Input parameters incomplete | C91: Input parameters incomplete | D91: Input parameters incomplete | E91: Input parameters incomplete | F91: 70 | G91: 0.08955203362 | H91: 1.119934858 | J91: 2600 | L91: 0.1053306454 | M91: 0.08 | N91: 0.9787157192 | O91: 30 | P91: 0.4030419254 | Q91: 0.6483763629 | R91: 0 | AA91: 233.4673741
B92: Input parameters incomplete | C92: Input parameters incomplete | D92: Input parameters incomplete | E92: Input parameters incomplete | F92: 70 | G92: 0.07605449037 | H92: 1.105460957 | J92: 2600 | L92: 0.1993245459 | M92: 0.08 | N92: 0.952287222 | O92: 30 | P92: 0.4624322943 | Q92: 0.6214884082 | R92: 0 | AA92: 177.7247704
B93: Input parameters incomplete | C93: Input parameters incomplete | D93: Input parameters incomplete | E93: Input parameters incomplete | F93: 70 | G93: 0.05049249683 | H93: 0.9811497759 | J93: 2600 | L93: 0.1220103275 | M93: 0.08 | N93: 0.9228873267 | O93: 30 | P93: 0.4516992302 | Q93: 0.7039268642 | R93: 0 | AA93: 202.2487231
B94: Input parameters incomplete | C94: Input parameters incomplete | D94: Input parameters incomplete | E94: Input parameters incomplete | F94: 70 | G94: 0.06166986876 | H94: 1.059560758 | J94: 2600 | L94: 0.1082080985 | M94: 0.08 | N94: 0.9064533435 | O94: 30 | P94: 0.4907372561 | Q94: 0.7542652439 | R94: 0 | AA94: 128.754688
B95: Input parameters incomplete | C95: Input parameters incomplete | D95: Input parameters incomplete | E95: Input parameters incomplete | F95: 70 | G95: 0.03404886343 | H95: 1.05930148 | J95: 2600 | L95: 0.08256464204 | M95: 0.08 | N95: 0.9903601131 | O95: 30 | P95: 0.4157630701 | Q95: 0.7035117327 | R95: 0 | AA95: 226.6961223
B96: Input parameters incomplete | C96: Input parameters incomplete | D96: Input parameters incomplete | E96: Input parameters incomplete | F96: 70 | G96: 0.04137269004 | H96: 1.014120039 | J96: 2600 | L96: 0.1895535427 | M96: 0.08 | N96: 0.9431120294 | O96: 30 | P96: 0.4329633093 | Q96: 0.7428923858 | R96: 0 | AA96: 130.2335967
B97: Input parameters incomplete | C97: Input parameters incomplete | D97: Input parameters incomplete | E97: Input parameters incomplete | F97: 70 | G97: 0.06444019895 | H97: 1.055127135 | J97: 2600 | L97: 0.1866412335 | M97: 0.08 | N97: 0.9461711752 | O97: 30 | P97: 0.4004561251 | Q97: 0.7620010112 | R97: 0 | AA97: 140.8966194
B98: Input parameters incomplete | C98: Input parameters incomplete | D98: Input parameters incomplete | E98: Input parameters incomplete | F98: 70 | G98: 0.04538422048 | H98: 1.0542664 | J98: 2600 | L98: 0.1773732799 | M98: 0.08 | N98: 0.9557518453 | O98: 30 | P98: 0.4482213166 | Q98: 0.6992203292 | R98: 0 | AA98: 204.7176502
B99: Input parameters incomplete | C99: Input parameters incomplete | D99: Input parameters incomplete | E99: Input parameters incomplete | F99: 70 | G99: 0.06481381113 | H99: 1.087082723 | J99: 2600 | L99: 0.1053658991 | M99: 0.08 | N99: 0.955851665 | O99: 30 | P99: 0.4252918191 | Q99: 0.6738010128 | R99: 0 | AA99: 250.4672656
B100: Input parameters incomplete | C100: Input parameters incomplete | D100: Input parameters incomplete | E100: Input parameters incomplete | F100: 70 | G100: 0.08626801283 | H100: 1.149489871 | J100: 2600 | L100: 0.1085210647 | M100: 0.08 | N100: 0.9895628493 | O100: 30 | P100: 0.4267021364 | Q100: 0.6397266551 | R100: 0 | AA100: 136.1037142
B101: Input parameters incomplete | C101: Input parameters incomplete | D101: Input parameters incomplete | E101: Input parameters incomplete | F101: 70 | G101: 0.04889378741 | H101: 1.060524216 | J101: 2600 | L101: 0.1512418739 | M101: 0.08 | N101: 0.9200883627 | O101: 30 | P101: 0.4381721042 | Q101: 0.6912301639 | R101: 0 | AA101: 211.9826992
B102: Input parameters incomplete | C102: Input parameters incomplete | D102: Input parameters incomplete | E102: Input parameters incomplete | F102: 70 | G102: 0.034251554 | H102: 1.066905802 | J102: 2600 | L102: 0.08402880607 | M102: 0.08 | N102: 0.9559051935 | O102: 30 | P102: 0.4083315028 | Q102: 0.7262066418 | R102: 0 | AA102: 189.5948102
B103: Input parameters incomplete | C103: Input parameters incomplete | D103: Input parameters incomplete | E103: Input parameters incomplete | F103: 70 | G103: 0.03884792845 | H103: 1.073703398 | J103: 2600 | L103: 0.09647850198 | M103: 0.08 | N103: 0.9594882658 | O103: 30 | P103: 0.4113515482 | Q103: 0.659369617 | R103: 0 | AA103: 263.6360978
B104: Input parameters incomplete | C104: Input parameters incomplete | D104: Input parameters incomplete | E104: Input parameters incomplete | F104: 70 | G104: 0.02773184081 | H104: 1.017810867 | J104: 2600 | L104: 0.1433362529 | M104: 0.08 | N104: 0.9339404575 | O104: 30 | P104: 0.4266448806 | Q104: 0.629464999 | R104: 0 | AA104: 300.5906596
B105: Input parameters incomplete | C105: Input parameters incomplete | D105: Input parameters incomplete | E105: Input parameters incomplete | F105: 70 | G105: 0.05804334764 | H105: 1.068869323 | J105: 2600 | L105: 0.1065123293 | M105: 0.08 | N105: 0.9513935266 | O105: 30 | P105: 0.4495339894 | Q105: 0.7996660042 | R105: 0 | AA105: 195.5394472
B106: Input parameters incomplete | C106: Input parameters incomplete | D106: Input parameters incomplete | E106: Input parameters incomplete | F106: 70 | G106: 0.05360751235 | H106: 1.054036348 | J106: 2600 | L106: 0.173778677 | M106: 0.08 | N106: 0.9453038115 | O106: 30 | P106: 0.4771398653 | Q106: 0.6822448016 | R106: 0 | AA106: 237.547439
B107: Input parameters incomplete | C107: Input parameters incomplete | D107: Input parameters incomplete | E107: Input parameters incomplete | F107: 70 | G107: 0.08231897548 | H107: 1.094158035 | J107: 2600 | L107: 0.08326850357 | M107: 0.08 | N107: 0.9557174772 | O107: 30 | P107: 0.4860562138 | Q107: 0.6562384277 | R107: 0 | AA107: 265.5251834
B108: Input parameters incomplete | C108: Input parameters incomplete | D108: Input parameters incomplete | E108: Input parameters incomplete | F108: 70 | G108: 0.03833712724 | H108: 1.094328001 | J108: 2600 | L108: 0.1957771525 | M108: 0.08 | N108: 0.9246473926 | O108: 30 | P108: 0.4185038402 | Q108: 0.7305419488 | R108: 0 | AA108: 154.7046179
B109: Input parameters incomplete | C109: Input parameters incomplete | D109: Input parameters incomplete | E109: Input parameters incomplete | F109: 70 | G109: 0.06196398475 | H109: 1.120122179 | J109: 2600 | L109: 0.1237996217 | M109: 0.08 | N109: 0.939064896 | O109: 30 | P109: 0.4802680984 | Q109: 0.6100301472 | R109: 0 | AA109: 211.2831011
B110: Input parameters incomplete | C110: Input parameters incomplete | D110: Input parameters incomplete | E110: Input parameters incomplete | F110: 70 | G110: 0.10256284 | H110: 1.042023847 | J110: 2600 | L110: 0.133720098 | M110: 0.08 | N110: 0.9407534706 | O110: 30 | P110: 0.4257859069 | Q110: 0.7996341886 | R110: 0 | AA110: 198.9942384
B111: Input parameters incomplete | C111: Input parameters incomplete | D111: Input parameters incomplete | E111: Input parameters incomplete | F111: 70 | G111: 0.02665134212 | H111: 1.049898581 | J111: 2600 | L111: 0.1121641099 | M111: 0.08 | N111: 0.9462332055 | O111: 30 | P111: 0.4389886919 | Q111: 0.7022517922 | R111: 0 | AA111: 235.7798068
B112: Input parameters incomplete | C112: Input parameters incomplete | D112: Input parameters incomplete | E112: Input parameters incomplete | F112: 70 | G112: 0.06826936726 | H112: 1.023361168 | J112: 2600 | L112: 0.1932556358 | M112: 0.08 | N112: 0.9304566603 | O112: 30 | P112: 0.4718615674 | Q112: 0.7205145358 | R112: 0 | AA112: 194.3822669
B113: Input parameters incomplete | C113: Input parameters incomplete | D113: Input parameters incomplete | E113: Input parameters incomplete | F113: 70 | G113: 0.06995600645 | H113: 1.06865238 | J113: 2600 | L113: 0.112141421 | M113: 0.08 | N113: 0.9611705759 | O113: 30 | P113: 0.4857539385 | Q113: 0.7114192354 | R113: 0 | AA113: 262.7529573
B114: Input parameters incomplete | C114: Input parameters incomplete | D114: Input parameters incomplete | E114: Input parameters incomplete | F114: 70 | G114: 0.073778579 | H114: 1.089913397 | J114: 2600 | L114: 0.1236913272 | M114: 0.08 | N114: 0.9367237628 | O114: 30 | P114: 0.4362842079 | Q114: 0.7972550474 | R114: 0 | AA114: 161.1381917
B115: Input parameters incomplete | C115: Input parameters incomplete | D115: Input parameters incomplete | E115: Input parameters incomplete | F115: 70 | G115: 0.07975439195 | H115: 1.084928212 | J115: 2600 | L115: 0.1430936201 | M115: 0.08 | N115: 0.9280948243 | O115: 30 | P115: 0.4028672095 | Q115: 0.6378894588 | R115: 0 | AA115: 135.8419381
B116: Input parameters incomplete | C116: Input parameters incomplete | D116: Input parameters incomplete | E116: Input parameters incomplete | F116: 70 | G116: 0.0521050082 | H116: 1.08770586 | J116: 2600 | L116: 0.09454447468 | M116: 0.08 | N116: 0.9316476588 | O116: 30 | P116: 0.4055814063 | Q116: 0.7598300287 | R116: 0 | AA116: 183.5411828
B117: Input parameters incomplete | C117: Input parameters incomplete | D117: Input parameters incomplete | E117: Input parameters incomplete | F117: 70 | G117: 0.08439996489 | H117: 1.048317438 | J117: 2600 | L117: 0.1438857858 | M117: 0.08 | N117: 0.9265525303 | O117: 30 | P117: 0.4744539387 | Q117: 0.6995758312 | R117: 0 | AA117: 259.3596135
B118: Input parameters incomplete | C118: Input parameters incomplete | D118: Input parameters incomplete | E118: Input parameters incomplete | F118: 70 | G118: 0.05876917151 | H118: 1.101980877 | J118: 2600 | L118: 0.1080030248 | M118: 0.08 | N118: 0.9418063313 | O118: 30 | P118: 0.4227021139 | Q118: 0.6582374689 | R118: 0 | AA118: 231.1259118
B119: Input parameters incomplete | C119: Input parameters incomplete | D119: Input parameters incomplete | E119: Input parameters incomplete | F119: 70 | G119: 0.07680276486 | H119: 1.030935538 | J119: 2600 | L119: 0.1295499894 | M119: 0.08 | N119: 0.9379630987 | O119: 30 | P119: 0.46113397 | Q119: 0.7819762313 | R119: 0 | AA119: 154.787677
B120: Input parameters incomplete | C120: Input parameters incomplete | D120: Input parameters incomplete | E120: Input parameters incomplete | F120: 70 | G120: 0.1003149343 | H120: 1.031638962 | J120: 2600 | L120: 0.1262587756 | M120: 0.08 | N120: 0.9427561868 | O120: 30 | P120: 0.4897242167 | Q120: 0.6603301052 | R120: 0 | AA120: 284.6532943
B121: Input parameters incomplete | C121: Input parameters incomplete | D121: Input parameters incomplete | E121: Input parameters incomplete | F121: 70 | G121: 0.08422092025 | H121: 1.114060095 | J121: 2600 | L121: 0.1933269809 | M121: 0.08 | N121: 0.929459921 | O121: 30 | P121: 0.4465204894 | Q121: 0.7647206843 | R121: 0 | AA121: 152.2627776
B122: Input parameters incomplete | C122: Input parameters incomplete | D122: Input parameters incomplete | E122: Input parameters incomplete | F122: 70 | G122: 0.06879763362 | H122: 1.090366575 | J122: 2600 | L122: 0.1418141248 | M122: 0.08 | N122: 0.9566031547 | O122: 30 | P122: 0.4887174945 | Q122: 0.6698136493 | R122: 0 | AA122: 194.5302269
B123: Input parameters incomplete | C123: Input parameters incomplete | D123: Input parameters incomplete | E123: Input parameters incomplete | F123: 70 | G123: 0.03927308123 | H123: 1.132613132 | J123: 2600 | L123: 0.1410815095 | M123: 0.08 | N123: 0.9127521128 | O123: 30 | P123: 0.4862584328 | Q123: 0.7390439873 | R123: 0 | AA123: 213.4287546
B124: Input parameters incomplete | C124: Input parameters incomplete | D124: Input parameters incomplete | E124: Input parameters incomplete | F124: 70 | G124: 0.04236311137 | H124: 1.069437649 | J124: 2600 | L124: 0.1382638454 | M124: 0.08 | N124: 0.9964537044 | O124: 30 | P124: 0.4270158237 | Q124: 0.7663149525 | R124: 0 | AA124: 253.0938036
B125: Input parameters incomplete | C125: Input parameters incomplete | D125: Input parameters incomplete | E125: Input parameters incomplete | F125: 70 | G125: 0.02145183258 | H125: 1.163249227 | J125: 2600 | L125: 0.1570129461 | M125: 0.08 | N125: 0.9368392603 | O125: 30 | P125: 0.4558686008 | Q125: 0.7584355024 | R125: 0 | AA125: 206.0298075
B126: Input parameters incomplete | C126: Input parameters incomplete | D126: Input parameters incomplete | E126: Input parameters incomplete | F126: 70 | G126: 0.1083825395 | H126: 1.011659734 | J126: 2600 | L126: 0.1146832249 | M126: 0.08 | N126: 0.952573315 | O126: 30 | P126: 0.4693091412 | Q126: 0.7063977018 | R126: 0 | AA126: 201.5654103
B127: Input parameters incomplete | C127: Input parameters incomplete | D127: Input parameters incomplete | E127: Input parameters incomplete | F127: 70 | G127: 0.09465635638 | H127: 1.159819943 | J127: 2600 | L127: 0.1383598576 | M127: 0.08 | N127: 0.9908792528 | O127: 30 | P127: 0.4937789958 | Q127: 0.6263272457 | R127: 0 | AA127: 259.0405778
B128: Input parameters incomplete | C128: Input parameters incomplete | D128: Input parameters incomplete | E128: Input parameters incomplete | F128: 70 | G128: 0.08247752187 | H128: 1.099862162 | J128: 2600 | L128: 0.1878046462 | M128: 0.08 | N128: 0.9502772967 | O128: 30 | P128: 0.4927818032 | Q128: 0.7398977102 | R128: 0 | AA128: 245.6879084
B129: Input parameters incomplete | C129: Input parameters incomplete | D129: Input parameters incomplete | E129: Input parameters incomplete | F129: 70 | G129: 0.07108761688 | H129: 1.038370356 | J129: 2600 | L129: 0.1128361826 | M129: 0.08 | N129: 0.9325076023 | O129: 30 | P129: 0.4286438862 | Q129: 0.6827581507 | R129: 0 | AA129: 183.6154064
B130: Input parameters incomplete | C130: Input parameters incomplete | D130: Input parameters incomplete | E130: Input parameters incomplete | F130: 70 | G130: 0.05787206374 | H130: 1.028646681 | J130: 2600 | L130: 0.1912249871 | M130: 0.08 | N130: 0.9679953067 | O130: 30 | P130: 0.4916961533 | Q130: 0.7411823396 | R130: 0 | AA130: 294.9975024
B131: Input parameters incomplete | C131: Input parameters incomplete | D131: Input parameters incomplete | E131: Input parameters incomplete | F131: 70 | G131: 0.06842869355 | H131: 1.042564774 | J131: 2600 | L131: 0.1468490514 | M131: 0.08 | N131: 0.9601719603 | O131: 30 | P131: 0.4732163893 | Q131: 0.6138291304 | R131: 0 | AA131: 163.414543
B132: Input parameters incomplete | C132: Input parameters incomplete | D132: Input parameters incomplete | E132: Input parameters incomplete | F132: 70 | G132: 0.09007539037 | H132: 1.029489445 | J132: 2600 | L132: 0.08027410418 | M132: 0.08 | N132: 0.959152493 | O132: 30 | P132: 0.4955218268 | Q132: 0.6612296178 | R132: 0 | AA132: 161.9735041
B133: Input parameters incomplete | C133: Input parameters incomplete | D133: Input parameters incomplete | E133: Input parameters incomplete | F133: 70 | G133: 0.05137647304 | H133: 1.006364895 | J133: 2600 | L133: 0.1391306155 | M133: 0.08 | N133: 0.9727685024 | O133: 30 | P133: 0.4361672825 | Q133: 0.7063513239 | R133: 0 | AA133: 159.8573117
B134: Input parameters incomplete | C134: Input parameters incomplete | D134: Input parameters incomplete | E134: Input parameters incomplete | F134: 70 | G134: 0.05103717702 | H134: 1.103918213 | J134: 2600 | L134: 0.1691857798 | M134: 0.08 | N134: 0.9384028697 | O134: 30 | P134: 0.4061162566 | Q134: 0.7440950373 | R134: 0 | AA134: 150.9703849
B135: Input parameters incomplete | C135: Input parameters incomplete | D135: Input parameters incomplete | E135: Input parameters incomplete | F135: 70 | G135: 0.06596571737 | H135: 1.06198661 | J135: 2600 | L135: 0.1051473763 | M135: 0.08 | N135: 0.9372011502 | O135: 30 | P135: 0.4905689615 | Q135: 0.6230955649 | R135: 0 | AA135: 128.0213412
B136: Input parameters incomplete | C136: Input parameters incomplete | D136: Input parameters incomplete | E136: Input parameters incomplete | F136: 70 | G136: 0.04821164921 | H136: 1.069386697 | J136: 2600 | L136: 0.146807783 | M136: 0.08 | N136: 0.9509521317 | O136: 30 | P136: 0.4662371075 | Q136: 0.62266894 | R136: 0 | AA136: 284.9428268
B137: Input parameters incomplete | C137: Input parameters incomplete | D137: Input parameters incomplete | E137: Input parameters incomplete | F137: 70 | G137: 0.08435879714 | H137: 1.076233768 | J137: 2600 | L137: 0.1476097962 | M137: 0.08 | N137: 0.968544302 | O137: 30 | P137: 0.4932096531 | Q137: 0.6279521541 | R137: 0 | AA137: 173.2500638
B138: Input parameters incomplete | C138: Input parameters incomplete | D138: Input parameters incomplete | E138: Input parameters incomplete | F138: 70 | G138: 0.0567754772 | H138: 1.014046551 | J138: 2600 | L138: 0.08466544655 | M138: 0.08 | N138: 0.9642677208 | O138: 30 | P138: 0.4053613263 | Q138: 0.748401902 | R138: 0 | AA138: 130.125478
B139: Input parameters incomplete | C139: Input parameters incomplete | D139: Input parameters incomplete | E139: Input parameters incomplete | F139: 70 | G139: 0.03811727179 | H139: 1.00488484 | J139: 2600 | L139: 0.1667910589 | M139: 0.08 | N139: 0.9758172631 | O139: 30 | P139: 0.4515208539 | Q139: 0.7121636634 | R139: 0 | AA139: 200.4819947
B140: Input parameters incomplete | C140: Input parameters incomplete | D140: Input parameters incomplete | E140: Input parameters incomplete | F140: 70 | G140: 0.07335718883 | H140: 1.079405627 | J140: 2600 | L140: 0.1793242212 | M140: 0.08 | N140: 0.9643877193 | O140: 30 | P140: 0.4604281743 | Q140: 0.6248574715 | R140: 0 | AA140: 125.6314083
B141: Input parameters incomplete | C141: Input parameters incomplete | D141: Input parameters incomplete | E141: Input parameters incomplete | F141: 70 | G141: 0.07230678001 | H141: 1.065675256 | J141: 2600 | L141: 0.1876764089 | M141: 0.08 | N141: 0.949342434 | O141: 30 | P141: 0.4132593518 | Q141: 0.6344499499 | R141: 0 | AA141: 280.6338665
B142: Input parameters incomplete | C142: Input parameters incomplete | D142: Input parameters incomplete | E142: Input parameters incomplete | F142: 70 | G142: 0.07453848473 | H142: 1.108640896 | J142: 2600 | L142: 0.1659708063 | M142: 0.08 | N142: 0.9868752373 | O142: 30 | P142: 0.4687582718 | Q142: 0.700851116 | R142: 0 | AA142: 161.5989339
B143: Input parameters incomplete | C143: Input parameters incomplete | D143: Input parameters incomplete | E143: Input parameters incomplete | F143: 70 | G143: 0.04391543101 | H143: 1.096774873 | J143: 2600 | L143: 0.1291332746 | M143: 0.08 | N143: 0.9530980558 | O143: 30 | P143: 0.4708114588 | Q143: 0.6058701831 | R143: 0 | AA143: 131.5257883
B144: Input parameters incomplete | C144: Input parameters incomplete | D144: Input parameters incomplete | E144: Input parameters incomplete | F144: 70 | G144: 0.06714595109 | H144: 1.066872633 | J144: 2600 | L144: 0.1744726046 | M144: 0.08 | N144: 0.9600490898 | O144: 30 | P144: 0.4734693261 | Q144: 0.743708401 | R144: 0 | AA144: 113.8991671
B145: Input parameters incomplete | C145: Input parameters incomplete | D145: Input parameters incomplete | E145: Input parameters incomplete | F145: 70 | G145: 0.07167187606 | H145: 1.012332234 | J145: 2600 | L145: 0.1848981995 | M145: 0.08 | N145: 0.9760007774 | O145: 30 | P145: 0.4152903554 | Q145: 0.7397904344 | R145: 0 | AA145: 125.3378063
B146: Input parameters incomplete | C146: Input parameters incomplete | D146: Input parameters incomplete | E146: Input parameters incomplete | F146: 70 | G146: 0.05846504906 | H146: 1.076967607 | J146: 2600 | L146: 0.08422819855 | M146: 0.08 | N146: 0.9823712022 | O146: 30 | P146: 0.4473283851 | Q146: 0.6777556451 | R146: 0 | AA146: 173.9283605
B147: Input parameters incomplete | C147: Input parameters incomplete | D147: Input parameters incomplete | E147: Input parameters incomplete | F147: 70 | G147: 0.07064031704 | H147: 1.102780805 | J147: 2600 | L147: 0.1060171438 | M147: 0.08 | N147: 0.9633255322 | O147: 30 | P147: 0.4303303034 | Q147: 0.6435443153 | R147: 0 | AA147: 188.6085521
B148: Input parameters incomplete | C148: Input parameters incomplete | D148: Input parameters incomplete | E148: Input parameters incomplete | F148: 70 | G148: 0.06088423257 | H148: 1.033754221 | J148: 2600 | L148: 0.09618592554 | M148: 0.08 | N148: 0.956725542 | O148: 30 | P148: 0.4007327719 | Q148: 0.64049063 | R148: 0 | AA148: 148.2142841
B149: Input parameters incomplete | C149: Input parameters incomplete | D149: Input parameters incomplete | E149: Input parameters incomplete | F149: 70 | G149: 0.07143581214 | H149: 1.014932407 | J149: 2600 | L149: 0.08650800288 | M149: 0.08 | N149: 0.9654548283 | O149: 30 | P149: 0.4717380562 | Q149: 0.7755581912 | R149: 0 | AA149: 251.0456524
B150: Input parameters incomplete | C150: Input parameters incomplete | D150: Input parameters incomplete | E150: Input parameters incomplete | F150: 70 | G150: 0.04635571807 | H150: 1.039024294 | J150: 2600 | L150: 0.1163132898 | M150: 0.08 | N150: 0.9635801165 | O150: 30 | P150: 0.4584508825 | Q150: 0.7008756724 | R150: 0 | AA150: 127.8477825
B151: Input parameters incomplete | C151: Input parameters incomplete | D151: Input parameters incomplete | E151: Input parameters incomplete | F151: 70 | G151: 0.08977870311 | H151: 1.030843471 | J151: 2600 | L151: 0.08905207617 | M151: 0.08 | N151: 0.9630049535 | O151: 30 | P151: 0.4817323022 | Q151: 0.7022199924 | R151: 0 | AA151: 227.083932
B152: Input parameters incomplete | C152: Input parameters incomplete | D152: Input parameters incomplete | E152: Input parameters incomplete | F152: 70 | G152: 0.08450414831 | H152: 0.9954697995 | J152: 2600 | L152: 0.1767312331 | M152: 0.08 | N152: 0.9745889732 | O152: 30 | P152: 0.4415855276 | Q152: 0.7197170795 | R152: 0 | AA152: 126.9595551
B153: Input parameters incomplete | C153: Input parameters incomplete | D153: Input parameters incomplete | E153: Input parameters incomplete | F153: 70 | G153: 0.07336439825 | H153: 1.074101565 | J153: 2600 | L153: 0.1079679711 | M153: 0.08 | N153: 0.9207953794 | O153: 30 | P153: 0.4316028995 | Q153: 0.7564629254 | R153: 0 | AA153: 251.3115132
B154: Input parameters incomplete | C154: Input parameters incomplete | D154: Input parameters incomplete | E154: Input parameters incomplete | F154: 70 | G154: 0.06464497882 | H154: 1.05889527 | J154: 2600 | L154: 0.1159754936 | M154: 0.08 | N154: 0.9151148055 | O154: 30 | P154: 0.4338003428 | Q154: 0.6738295262 | R154: 0 | AA154: 120.4886464
B155: Input parameters incomplete | C155: Input parameters incomplete | D155: Input parameters incomplete | E155: Input parameters incomplete | F155: 70 | G155: 0.0759665975 | H155: 1.037685423 | J155: 2600 | L155: 0.08123210975 | M155: 0.08 | N155: 0.9479322892 | O155: 30 | P155: 0.4520872624 | Q155: 0.6553853445 | R155: 0 | AA155: 203.8297639
B156: Input parameters incomplete | C156: Input parameters incomplete | D156: Input parameters incomplete | E156: Input parameters incomplete | F156: 70 | G156: 0.09110009977 | H156: 1.13077574 | J156: 2600 | L156: 0.1183518702 | M156: 0.08 | N156: 0.9122335544 | O156: 30 | P156: 0.4838221781 | Q156: 0.7979768286 | R156: 0 | AA156: 135.0137893
B157: Input parameters incomplete | C157: Input parameters incomplete | D157: Input parameters incomplete | E157: Input parameters incomplete | F157: 70 | G157: 0.02484486771 | H157: 1.140857342 | J157: 2600 | L157: 0.161757381 | M157: 0.08 | N157: 0.9471511216 | O157: 30 | P157: 0.4343513223 | Q157: 0.7382930543 | R157: 0 | AA157: 140.6155499
B158: Input parameters incomplete | C158: Input parameters incomplete | D158: Input parameters incomplete | E158: Input parameters incomplete | F158: 70 | G158: 0.05345192104 | H158: 0.9847943315 | J158: 2600 | L158: 0.1566318673 | M158: 0.08 | N158: 0.9301311024 | O158: 30 | P158: 0.4964371269 | Q158: 0.6161783955 | R158: 0 | AA158: 133.0260278
B159: Input parameters incomplete | C159: Input parameters incomplete | D159: Input parameters incomplete | E159: Input parameters incomplete | F159: 70 | G159: 0.03912170236 | H159: 1.05064059 | J159: 2600 | L159: 0.1653078213 | M159: 0.08 | N159: 0.9349554961 | O159: 30 | P159: 0.4144541362 | Q159: 0.7497143944 | R159: 0 | AA159: 245.4199953
B160: Input parameters incomplete | C160: Input parameters incomplete | D160: Input parameters incomplete | E160: Input parameters incomplete | F160: 70 | G160: 0.05006785181 | H160: 1.086356682 | J160: 2600 | L160: 0.08603663542 | M160: 0.08 | N160: 0.9468331164 | O160: 30 | P160: 0.4751074821 | Q160: 0.6761973804 | R160: 0 | AA160: 245.286671
B161: Input parameters incomplete | C161: Input parameters incomplete | D161: Input parameters incomplete | E161: Input parameters incomplete | F161: 70 | G161: 0.08810143099 | H161: 1.059462918 | J161: 2600 | L161: 0.1526997003 | M161: 0.08 | N161: 0.9901590095 | O161: 30 | P161: 0.4121512829 | Q161: 0.6229410885 | R161: 0 | AA161: 255.9424899
B162: Input parameters incomplete | C162: Input parameters incomplete | D162: Input parameters incomplete | E162: Input parameters incomplete | F162: 70 | G162: 0.07454543596 | H162: 1.030337937 | J162: 2600 | L162: 0.09029056718 | M162: 0.08 | N162: 0.9358452481 | O162: 30 | P162: 0.4473352957 | Q162: 0.7317884458 | R162: 0 | AA162: 288.7231695
B163: Input parameters incomplete | C163: Input parameters incomplete | D163: Input parameters incomplete | E163: Input parameters incomplete | F163: 70 | G163: 0.06763375798 | H163: 1.093153689 | J163: 2600 | L163: 0.1048052977 | M163: 0.08 | N163: 0.9463454906 | O163: 30 | P163: 0.4042600569 | Q163: 0.6494325767 | R163: 0 | AA163: 266.7445064
B164: Input parameters incomplete | C164: Input parameters incomplete | D164: Input parameters incomplete | E164: Input parameters incomplete | F164: 70 | G164: 0.05036543747 | H164: 1.063877274 | J164: 2600 | L164: 0.08337906094 | M164: 0.08 | N164: 0.926468987 | O164: 30 | P164: 0.4654061471 | Q164: 0.6199261289 | R164: 0 | AA164: 180.338892
B165: Input parameters incomplete | C165: Input parameters incomplete | D165: Input parameters incomplete | E165: Input parameters incomplete | F165: 70 | G165: 0.07137501447 | H165: 1.04530716 | J165: 2600 | L165: 0.1375457801 | M165: 0.08 | N165: 0.9681821169 | O165: 30 | P165: 0.4015849356 | Q165: 0.600483923 | R165: 0 | AA165: 231.4956292
B166: Input parameters incomplete | C166: Input parameters incomplete | D166: Input parameters incomplete | E166: Input parameters incomplete | F166: 70 | G166: 0.0858137207 | H166: 1.01564072 | J166: 2600 | L166: 0.1898804732 | M166: 0.08 | N166: 0.9101119892 | O166: 30 | P166: 0.4143084864 | Q166: 0.746564419 | R166: 0 | AA166: 242.6911079
B167: Input parameters incomplete | C167: Input parameters incomplete | D167: Input parameters incomplete | E167: Input parameters incomplete | F167: 70 | G167: 0.07447899876 | H167: 1.044277921 | J167: 2600 | L167: 0.1891382629 | M167: 0.08 | N167: 0.9657725836 | O167: 30 | P167: 0.4932297606 | Q167: 0.7973263524 | R167: 0 | AA167: 149.3271939
B168: Input parameters incomplete | C168: Input parameters incomplete | D168: Input parameters incomplete | E168: Input parameters incomplete | F168: 70 | G168: 0.01949753246 | H168: 1.11784945 | J168: 2600 | L168: 0.1395654893 | M168: 0.08 | N168: 0.9424282068 | O168: 30 | P168: 0.4244160341 | Q168: 0.6099542552 | R168: 0 | AA168: 164.5871202
B169: Input parameters incomplete | C169: Input parameters incomplete | D169: Input parameters incomplete | E169: Input parameters incomplete | F169: 70 | G169: 0.07626185353 | H169: 1.145824563 | J169: 2600 | L169: 0.1028778071 | M169: 0.08 | N169: 0.9143455787 | O169: 30 | P169: 0.4704897931 | Q169: 0.7855197398 | R169: 0 | AA169: 230.5694859
B170: Input parameters incomplete | C170: Input parameters incomplete | D170: Input parameters incomplete | E170: Input parameters incomplete | F170: 70 | G170: 0.04054759222 | H170: 1.021126518 | J170: 2600 | L170: 0.1847460949 | M170: 0.08 | N170: 0.9435641255 | O170: 30 | P170: 0.4802720147 | Q170: 0.6315184735 | R170: 0 | AA170: 220.2633028
B171: Input parameters incomplete | C171: Input parameters incomplete | D171: Input parameters incomplete | E171: Input parameters incomplete | F171: 70 | G171: 0.06389378653 | H171: 1.048096549 | J171: 2600 | L171: 0.1921182074 | M171: 0.08 | N171: 0.9162447786 | O171: 30 | P171: 0.4770505065 | Q171: 0.6568713098 | R171: 0 | AA171: 219.5490501
B172: Input parameters incomplete | C172: Input parameters incomplete | D172: Input parameters incomplete | E172: Input parameters incomplete | F172: 70 | G172: 0.09526129581 | H172: 1.10526925 | J172: 2600 | L172: 0.1635784081 | M172: 0.08 | N172: 0.9768915426 | O172: 30 | P172: 0.4529237626 | Q172: 0.737595744 | R172: 0 | AA172: 260.0178217
B173: Input parameters incomplete | C173: Input parameters incomplete | D173: Input parameters incomplete | E173: Input parameters incomplete | F173: 70 | G173: 0.04211491803 | H173: 1.117396156 | J173: 2600 | L173: 0.1833128027 | M173: 0.08 | N173: 0.9504069029 | O173: 30 | P173: 0.4854856508 | Q173: 0.6003708763 | R173: 0 | AA173: 162.4863843
B174: Input parameters incomplete | C174: Input parameters incomplete | D174: Input parameters incomplete | E174: Input parameters incomplete | F174: 70 | G174: 0.06270344793 | H174: 1.069407949 | J174: 2600 | L174: 0.1279009067 | M174: 0.08 | N174: 0.9672806298 | O174: 30 | P174: 0.4574484805 | Q174: 0.698412546 | R174: 0 | AA174: 294.6643498
B175: Input parameters incomplete | C175: Input parameters incomplete | D175: Input parameters incomplete | E175: Input parameters incomplete | F175: 70 | G175: 0.06048853695 | H175: 1.092596389 | J175: 2600 | L175: 0.1906591939 | M175: 0.08 | N175: 0.9393139418 | O175: 30 | P175: 0.4430359338 | Q175: 0.7227119459 | R175: 0 | AA175: 192.2964422
B176: Input parameters incomplete | C176: Input parameters incomplete | D176: Input parameters incomplete | E176: Input parameters incomplete | F176: 70 | G176: 0.07501097153 | H176: 1.042006337 | J176: 2600 | L176: 0.1716249762 | M176: 0.08 | N176: 0.9470658372 | O176: 30 | P176: 0.4992616472 | Q176: 0.7104112402 | R176: 0 | AA176: 238.2959164
B177: Input parameters incomplete | C177: Input parameters incomplete | D177: Input parameters incomplete | E177: Input parameters incomplete | F177: 70 | G177: 0.111894612 | H177: 1.116293012 | J177: 2600 | L177: 0.1739595308 | M177: 0.08 | N177: 0.963351416 | O177: 30 | P177: 0.4531837739 | Q177: 0.7748517065 | R177: 0 | AA177: 147.4318567
B178: Input parameters incomplete | C178: Input parameters incomplete | D178: Input parameters incomplete | E178: Input parameters incomplete | F178: 70 | G178: 0.0759931645 | H178: 1.081307084 | J178: 2600 | L178: 0.1138438855 | M178: 0.08 | N178: 0.9489868936 | O178: 30 | P178: 0.4465902683 | Q178: 0.6214982877 | R178: 0 | AA178: 264.9457743
B179: Input parameters incomplete | C179: Input parameters incomplete | D179: Input parameters incomplete | E179: Input parameters incomplete | F179: 70 | G179: 0.0354649823 | H179: 1.022336219 | J179: 2600 | L179: 0.1355411176 | M179: 0.08 | N179: 0.9508955334 | O179: 30 | P179: 0.4134563927 | Q179: 0.6513198454 | R179: 0 | AA179: 170.8134109
B180: Input parameters incomplete | C180: Input parameters incomplete | D180: Input parameters incomplete | E180: Input parameters incomplete | F180: 70 | G180: 0.05494999881 | H180: 1.10383667 | J180: 2600 | L180: 0.1616454485 | M180: 0.08 | N180: 0.9388144459 | O180: 30 | P180: 0.4523117148 | Q180: 0.7018898716 | R180: 0 | AA180: 265.3823438
B181: Input parameters incomplete | C181: Input parameters incomplete | D181: Input parameters incomplete | E181: Input parameters incomplete | F181: 70 | G181: 0.03060522751 | H181: 1.085621036 | J181: 2600 | L181: 0.145733643 | M181: 0.08 | N181: 0.9804273098 | O181: 30 | P181: 0.4006524462 | Q181: 0.7702364539 | R181: 0 | AA181: 172.8035111
B182: Input parameters incomplete | C182: Input parameters incomplete | D182: Input parameters incomplete | E182: Input parameters incomplete | F182: 70 | G182: 0.06300762466 | H182: 1.115643801 | J182: 2600 | L182: 0.1496077708 | M182: 0.08 | N182: 0.9571189531 | O182: 30 | P182: 0.4283879003 | Q182: 0.6311629768 | R182: 0 | AA182: 233.640137
B183: Input parameters incomplete | C183: Input parameters incomplete | D183: Input parameters incomplete | E183: Input parameters incomplete | F183: 70 | G183: 0.04807045483 | H183: 1.090564731 | J183: 2600 | L183: 0.1142084605 | M183: 0.08 | N183: 0.979087393 | O183: 30 | P183: 0.4060526736 | Q183: 0.6416137979 | R183: 0 | AA183: 162.3027208
B184: Input parameters incomplete | C184: Input parameters incomplete | D184: Input parameters incomplete | E184: Input parameters incomplete | F184: 70 | G184: 0.07350782547 | H184: 1.007191296 | J184: 2600 | L184: 0.1721760379 | M184: 0.08 | N184: 0.9532948943 | O184: 30 | P184: 0.4730733842 | Q184: 0.6498575628 | R184: 0 | AA184: 163.1704524
B185: Input parameters incomplete | C185: Input parameters incomplete | D185: Input parameters incomplete | E185: Input parameters incomplete | F185: 70 | G185: 0.06565442186 | H185: 1.061291444 | J185: 2600 | L185: 0.1501808545 | M185: 0.08 | N185: 0.9229313024 | O185: 30 | P185: 0.4966854086 | Q185: 0.6496137841 | R185: 0 | AA185: 278.1687298
B186: Input parameters incomplete | C186: Input parameters incomplete | D186: Input parameters incomplete | E186: Input parameters incomplete | F186: 70 | G186: 0.0776663746 | H186: 1.078624012 | J186: 2600 | L186: 0.1511748576 | M186: 0.08 | N186: 0.9751911918 | O186: 30 | P186: 0.4571387848 | Q186: 0.6140287153 | R186: 0 | AA186: 211.0739459
B187: Input parameters incomplete | C187: Input parameters incomplete | D187: Input parameters incomplete | E187: Input parameters incomplete | F187: 70 | G187: 0.07972305252 | H187: 1.101639232 | J187: 2600 | L187: 0.09028310437 | M187: 0.08 | N187: 0.9668540346 | O187: 30 | P187: 0.4906471291 | Q187: 0.7772938467 | R187: 0 | AA187: 236.5860569
B188: Input parameters incomplete | C188: Input parameters incomplete | D188: Input parameters incomplete | E188: Input parameters incomplete | F188: 70 | G188: 0.04726279963 | H188: 1.089106851 | J188: 2600 | L188: 0.1121173222 | M188: 0.08 | N188: 0.9328821651 | O188: 30 | P188: 0.4575237508 | Q188: 0.6557250183 | R188: 0 | AA188: 266.1039354
B189: Input parameters incomplete | C189: Input parameters incomplete | D189: Input parameters incomplete | E189: Input parameters incomplete | F189: 70 | G189: 0.07819757919 | H189: 1.039035435 | J189: 2600 | L189: 0.1335630347 | M189: 0.08 | N189: 0.9716906743 | O189: 30 | P189: 0.4373803497 | Q189: 0.6979809063 | R189: 0 | AA189: 170.3997822
B190: Input parameters incomplete | C190: Input parameters incomplete | D190: Input parameters incomplete | E190: Input parameters incomplete | F190: 70 | G190: 0.06633624316 | H190: 1.09092324 | J190: 2600 | L190: 0.08348608235 | M190: 0.08 | N190: 0.9476390702 | O190: 30 | P190: 0.4742731496 | Q190: 0.6631342139 | R190: 0 | AA190: 185.2560316
B191: Input parameters incomplete | C191: Input parameters incomplete | D191: Input parameters incomplete | E191: Input parameters incomplete | F191: 70 | G191: 0.07108429997 | H191: 1.0643168 | J191: 2600 | L191: 0.1238568166 | M191: 0.08 | N191: 0.9308546528 | O191: 30 | P191: 0.4523990703 | Q191: 0.6504398156 | R191: 0 | AA191: 115.6153124
B192: Input parameters incomplete | C192: Input parameters incomplete | D192: Input parameters incomplete | E192: Input parameters incomplete | F192: 70 | G192: 0.05768892483 | H192: 1.107742396 | J192: 2600 | L192: 0.1097845242 | M192: 0.08 | N192: 0.9221686623 | O192: 30 | P192: 0.4132471396 | Q192: 0.6737788348 | R192: 0 | AA192: 212.7282985
B193: Input parameters incomplete | C193: Input parameters incomplete | D193: Input parameters incomplete | E193: Input parameters incomplete | F193: 70 | G193: 0.03173464585 | H193: 1.102823509 | J193: 2600 | L193: 0.1676027303 | M193: 0.08 | N193: 0.9852289477 | O193: 30 | P193: 0.4894662677 | Q193: 0.6674154718 | R193: 0 | AA193: 187.229041
B194: Input parameters incomplete | C194: Input parameters incomplete | D194: Input parameters incomplete | E194: Input parameters incomplete | F194: 70 | G194: 0.07875337127 | H194: 1.002604189 | J194: 2600 | L194: 0.145341844 | M194: 0.08 | N194: 0.9626879894 | O194: 30 | P194: 0.4473714193 | Q194: 0.7446785275 | R194: 0 | AA194: 191.4547511
B195: Input parameters incomplete | C195: Input parameters incomplete | D195: Input parameters incomplete | E195: Input parameters incomplete | F195: 70 | G195: 0.06189968701 | H195: 1.102521221 | J195: 2600 | L195: 0.09196912487 | M195: 0.08 | N195: 0.9453501649 | O195: 30 | P195: 0.4555630144 | Q195: 0.7026980488 | R195: 0 | AA195: 191.665077
B196: Input parameters incomplete | C196: Input parameters incomplete | D196: Input parameters incomplete | E196: Input parameters incomplete | F196: 70 | G196: 0.05122986724 | H196: 1.099636623 | J196: 2600 | L196: 0.09092618022 | M196: 0.08 | N196: 0.9607374399 | O196: 30 | P196: 0.4982871578 | Q196: 0.6434002553 | R196: 0 | AA196: 157.908316
B197: Input parameters incomplete | C197: Input parameters incomplete | D197: Input parameters incomplete | E197: Input parameters incomplete | F197: 70 | G197: 0.0563657686 | H197: 1.076741123 | J197: 2600 | L197: 0.1508675566 | M197: 0.08 | N197: 0.9346035537 | O197: 30 | P197: 0.4262268049 | Q197: 0.6061275623 | R197: 0 | AA197: 143.0954006
B198: Input parameters incomplete | C198: Input parameters incomplete | D198: Input parameters incomplete | E198: Input parameters incomplete | F198: 70 | G198: 0.06288240554 | H198: 1.126981225 | J198: 2600 | L198: 0.1811284089 | M198: 0.08 | N198: 0.9407715033 | O198: 30 | P198: 0.4256886413 | Q198: 0.7707885597 | R198: 0 | AA198: 278.8106591
B199: Input parameters incomplete | C199: Input parameters incomplete | D199: Input parameters incomplete | E199: Input parameters incomplete | F199: 70 | G199: 0.09799482393 | H199: 1.023369947 | J199: 2600 | L199: 0.1575048902 | M199: 0.08 | N199: 0.9791569663 | O199: 30 | P199: 0.4437124772 | Q199: 0.7635098193 | R199: 0 | AA199: 123.8382736
B200: Input parameters incomplete | C200: Input parameters incomplete | D200: Input parameters incomplete | E200: Input parameters incomplete | F200: 70 | G200: 0.02621188486 | H200: 1.08293084 | J200: 2600 | L200: 0.1409308288 | M200: 0.08 | N200: 0.9198774159 | O200: 30 | P200: 0.4250676059 | Q200: 0.704144999 | R200: 0 | AA200: 173.3811522
B201: Input parameters incomplete | C201: Input parameters incomplete | D201: Input parameters incomplete | E201: Input parameters incomplete | F201: 70 | G201: 0.08198249311 | H201: 1.045900539 | J201: 2600 | L201: 0.1742751625 | M201: 0.08 | N201: 0.9530894827 | O201: 30 | P201: 0.4060472785 | Q201: 0.705697277 | R201: 0 | AA201: 231.4516291
B202: Input parameters incomplete | C202: Input parameters incomplete | D202: Input parameters incomplete | E202: Input parameters incomplete | F202: 70 | G202: 0.06302401157 | H202: 1.074831855 | J202: 2600 | L202: 0.08589235537 | M202: 0.08 | N202: 0.9124454056 | O202: 30 | P202: 0.4741437174 | Q202: 0.739787682 | R202: 0 | AA202: 177.9330317
... 1811 more rows

Sheet Tables
A1: Resource Size Indices
A2: This worksheet provides data to other worksheets - do not make edits to this worksheet
A4: Temperature | C4: Water saturation pressure | E4: Source
B5: bar | C5: [kPa], [100*bar] | D5: [atm] | E5: [psi]
A6: 0.01 | B6: =C6/100 -> 0.0061165 | C6: 0.61165 | D6: 0.006 | E6: 0.088712
A7: 2 | B7: 0.0070599 | C7: 0.70599 | D7: 0.007 | E7: 0.1024
A8: 4 | B8: 0.0081355 | C8: 0.81355 | D8: 0.008 | E8: 0.118
A9: 10 | B9: 0.012282 | C9: 1.2282 | D9: 0.0121 | E9: 0.17814
A10: 14 | B10: 0.01599 | C10: 1.599 | D10: 0.0158 | E10: 0.23192
A11: 18 | B11: 0.020647 | C11: 2.0647 | D11: 0.0204 | E11: 0.29946
A12: 20 | B12: 0.023393 | C12: 2.3393 | D12: 0.0231 | E12: 0.33929
A13: 25 | B13: 0.031699 | C13: 3.1699 | D13: 0.0313 | E13: 0.45976
A14: 30 | B14: 0.04247 | C14: 4.247 | D14: 0.0419 | E14: 0.61598
A15: 34 | B15: 0.053251 | C15: 5.3251 | D15: 0.0526 | E15: 0.77234
A16: 40 | B16: 0.073849 | C16: 7.3849 | D16: 0.0729 | E16: 1.0711
A17: 44 | B17: 0.091124 | C17: 9.1124 | D17: 0.0899 | E17: 1.3216
A18: 50 | B18: 0.12352 | C18: 12.352 | D18: 0.122 | E18: 1.7915
A19: 54 | B19: 0.15022 | C19: 15.022 | D19: 0.148 | E19: 2.1788
A20: 60 | B20: 0.19946 | C20: 19.946 | D20: 0.197 | E20: 2.8929
A21: 70 | B21: 0.31201 | C21: 31.201 | D21: 0.308 | E21: 4.5253
A22: 80 | B22: 0.47414 | C22: 47.414 | D22: 0.468 | E22: 6.8768
A23: 90 | B23: 0.70182 | C23: 70.182 | D23: 0.693 | E23: 10.179
A24: 96 | B24: 0.87771 | C24: 87.771 | D24: 0.866 | E24: 12.73
A25: 100 | B25: 1.0142 | C25: 101.42 | D25: 1.001 | E25: 14.71
A26: 110 | B26: 1.4338 | C26: 143.38 | D26: 1.42 | E26: 20.796
A27: 120 | B27: 1.9867 | C27: 198.67 | D27: 1.96 | E27: 28.815
A28: 130 | B28: 2.7028 | C28: 270.28 | D28: 2.67 | E28: 39.201
A29: 140 | B29: 3.6154 | C29: 361.54 | D29: 3.57 | E29: 52.437
A30: 150 | B30: 4.7616 | C30: 476.16 | D30: 4.7 | E30: 69.061
A31: 160 | B31: 6.1823 | C31: 618.23 | D31: 6.1 | E31: 89.667
A32: 180 | B32: 10.028 | C32: 1002.8 | D32: 9.9 | E32: 145.44
A33: 200 | B33: 15.549 | C33: 1554.9 | D33: 15.35 | E33: 225.52
A34: 220 | B34: 23.196 | C34: 2319.6 | D34: 22.89 | E34: 336.43
A35: 240 | B35: 33.469 | C35: 3346.9 | D35: 33.03 | E35: 485.43
A36: 260 | B36: 46.923 | C36: 4692.3 | D36: 46.31 | E36: 680.56
A37: 280 | B37: 64.166 | C37: 6416.6 | D37: 63.33 | E37: 930.65
A38: 300 | B38: 85.879 | C38: 8587.9 | D38: 84.76 | E38: 1245.6
A39: 320 | B39: 112.84 | C39: 11284 | D39: 111.4 | E39: 1636.6
A40: 340 | B40: 146.01 | C40: 14601 | D40: 144.1 | E40: 2117.7
A41: 360 | B41: 186.66 | C41: 18666 | D41: 184.2 | E41: 2707.3
A42: 370 | B42: 210.44 | C42: 21044 | D42: 207.7 | E42: 3052.2
A45: Rock type | B45: Specific heat capacity at 200 C (kJ/kg K) | C45: Specific heat capacity at 50-65 C (kJ/kg K) | D45: Specific heat capacity at 400 K | E45: Citation
A46: Granite | B46: 1.07 | C46: 0.95 | D46: 1.39
A47: Granodiorite | B47: 1.09 | C47: 0.97 | D47: 1.18
A48: Diorite | B48: 1.09 | C48: 0.99 | D48: 1.18
A49: Basalt | B49: 1.15 | C49: 1.04 | D49: 1.32
A50: Diabase | B50: 0.98 | C50: 0.87 | D50: 1.19
A51: Gabbro | B51: 1.1 | C51: 0.99 | D51: 1.18
A52: Gneiss | B52: 1.075 | C52: 0.925 | D52: 1.15
A53: Slate | B53: 1.1 | C53: 1 | D53: 1.2
A54: Quartzite | B54: 1.07 | C54: 0.97 | D54: 1.17
A55: Marble | B55: 1 | C55: 0.8 | D55: 1.1
A56: Sandstone | B56: 0.93 | C56: 0.85 | D56: 1.05
A57: Clay | B57: 1.08 | C57: 0.94 | D57: 1.51
A58: Shale | B58: 1.47 | C58: 0.978 | D58: 1.8
A59: Limestone | B59: 1 | C59: 0.9 | D59: 1.1
A60: - | B60: 0.8 | C60: 0.75 | D60: 0.88
A61: Water Specific Heat Capacity
A62: Temp | B62: Spec Heat
A63: C | B63: kJ/kg/K
A64: 0.01 | B64: 4.2199
A65: 10 | B65: 4.1955
A66: 20 | B66: 4.1844
A67: 25 | B67: 4.1816
A68: 30 | B68: 4.1801
A69: 40 | B69: 4.1796
A70: 50 | B70: 4.1815
A71: 60 | B71: 4.1851
A72: 70 | B72: 4.1902
A73: 80 | B73: 4.1969
A74: 90 | B74: 4.2053
A75: 100 | B75: 4.219
A76: 105 | B76: 4.226
A77: 110 | B77: 4.233
A78: 115 | B78: 4.24
A79: 120 | B79: 4.248
A80: 125 | B80: 4.26
A81: 130 | B81: 4.27
A82: 135 | B82: 4.28
A83: 140 | B83: 4.29
A84: 145 | B84: 4.3
A85: 150 | B85: 4.32
A86: 155 | B86: 4.34
A87: 160 | B87: 4.35
A88: 165 | B88: 4.36
A89: 170 | B89: 4.38
A90: 175 | B90: 4.39
A91: 180 | B91: 4.42
A92: 185 | B92: 4.45
A93: 190 | B93: 4.46
A94: 200 | B94: 4.51
A95: 220 | B95: 4.63
A96: 225 | B96: 4.65
A97: 240 | B97: 4.78
A98: 250 | B98: 4.87
A99: 260 | B99: 4.98
A100: 275 | B100: 5.2
A101: 300 | B101: 5.65
A102: 325 | B102: 6.86
A103: 350 | B103: 10.1
A104: 360 | B104: 14.6
A106: Rock densities
A107: Rock type | B107: Density (g/cm^3) | C107: Density (kg/m^3)
A108: Granite | B108: 2.64 | C108: 2640
A109: Granodiorite | B109: 2.73 | C109: 2730 | D109: #Unconsolidated sed with a mean for the density from USGS report, but could give the option of a data table to reference with the densities for other types of unconsolidated seds
A110: Diorite | B110: 2.85 | C110: 2850 | D110: #Ask Annamaria and Alison what they think
A111: Basalt | B111: 2.99 | C111: 2990 | D111: #And maybe Bart?
A112: Diabase | B112: 2.91 | C112: 2910
A113: Gabbro | B113: 3.03 | C113: 3030
A114: Gneiss | B114: 2.8 | C114: 2800
A115: Slate | B115: 2.79 | C115: 2790
A116: Quartzite | B116: 2.6 | C116: 2600
A117: Marble | B117: 2.75 | C117: 2750
A118: Sandstone | B118: 2.35 | C118: 2350
A119: Clay | B119: 2.21 | C119: 2210
A120: Shale | B120: 2.4 | C120: 2400
A121: Limestone | B121: 2.55 | C121: 2550
A122: - | B122: 1.53 | C122: 1530
A125: Water Density
A126: C | B126: kg/m^3
A127: Temp | B127: Density
A128: 0.1 | B128: 999.85
A129: 1 | B129: 999.9
A130: 4 | B130: 999.97
A131: 10 | B131: 999.7
A132: 15 | B132: 999.1
A133: 20 | B133: 998.21
A134: 25 | B134: 997.05
A135: 30 | B135: 995.65
A136: 35 | B136: 994.03
A137: 40 | B137: 992.22
A138: 45 | B138: 990.21
A139: 50 | B139: 988.04
A140: 55 | B140: 985.69
A141: 60 | B141: 983.2
A142: 65 | B142: 980.55
A143: 70 | B143: 977.76
A144: 75 | B144: 974.84
A145: 80 | B145: 971.79
A146: 85 | B146: 968.61
A147: 90 | B147: 965.31
A148: 95 | B148: 961.89
A149: 100 | B149: 958
A150: 105 | B150: 954
A151: 110 | B151: 951
A152: 115 | B152: 947
A153: 120 | B153: 943
A154: 125 | B154: 939
A155: 130 | B155: 935
A156: 135 | B156: 931
A157: 140 | B157: 926
A158: 145 | B158: 922
A159: 150 | B159: 918
A160: 155 | B160: 912
A161: 160 | B161: 907
A162: 165 | B162: 902
A163: 170 | B163: 897
A164: 175 | B164: 893
A165: 180 | B165: 887
A166: 185 | B166: 882
A167: 190 | B167: 876
A168: 195 | B168: 870
A169: 200 | B169: 864
A170: 220 | B170: 840
A171: 225 | B171: 834
A172: 240 | B172: 814
A173: 250 | B173: 799
A174: 260 | B174: 784
A175: 275 | B175: 756
A176: 300 | B176: 714
A177: 325 | B177: 654
A178: 350 | B178: 575
A179: 360 | B179: 528
A181: Tectonic Settings for Power Density Method
A182: Rift
A183: Large-scale arc setting with smaller-scale fault-based structures
A184: Primarily compressional Arc-volcanic setting (Hot Arc)
A185: Extensional Regime (Normal Fault-Based)
A186: Other
A188: Distribution Types
A189: Triangular
A190: Normal
A191: Lognormal
A192: Constant
A193: Uniform
A194: -
A195: Power Plant type
A196: Steam (dry/flash)
A197: Binary
A198: -
B199: Utilization/Load Factor
A200: Direct Use types | B200: Min | C200: Median/Mean | D200: Max
A201: Space Heating | B201: 0.3 | C201: 0.37 | D201: 0.4
A202: Greenhouse Heating | B202: 0.4 | C202: 0.48 | D202: 0.5
A203: Pool heating (aquaculture/balneology) | B203: 0.5 | C203: 0.54 | D203: 0.6
A204: Agricultural Drying | B204: 0.4 | C204: 0.41 | D204: 0.5
A205: Industrial | B205: 0.65 | C205: 0.7 | D205: 0.75
A206: Snow melting or cooling | B206: 0.1 | C206: 0.18 | D206: 0.3
A207: - | B207: - | C207: - | D207: -
